Workbook

Sheet Título

Sheet ComeçarAqui
A1: Calcula a evapotranspiração de referência pelo método de Penman-Monteith (até + de 1 milhão de dias; dias sem dados ou com falhas são ignorados)
A2: Programado por J P de Melo e Abreu (reporte possíveis (mas improváveis) erros para o seu autor: jpabreu@isa.utl.pt).
A3: Substituir todos os parâmetros e opções (células a verde) e os dados diários das colunas cujo título está a azul. Pode começar no dia que quiser, saltar dias, ou ter dados em falta. Nestes casos, os dias em causa são ignorados.
A4: Para cada dia, tem de preencher todas as células encimadas a azul; só as células das colunas I e J são preenchidas em alternativa (isto é: se preenche uma não preenche a outra).
A5: Depois de preencher carregue no botão. Note que tem de ter as macros ativadas, o que consegue com uma segurança média. Nas versões mais recentes do Windows, aparece um aviso de segurança e nas opções tem que ativar as macros.
A6: Mostrar detalhes? | C6: Sim | D6: Clique! (Sim/Não)
A7: Localização: | C7: Tapada da Ajuda
A9: Latitude: | B9: 38 | C9: graus | D9: 42 | E9: minutos | F9: 0 | G9: segundos | H9: Norte | I9: Clique! (Norte/Sul)
A10: Altitude | B10: 50 | C10: m | D10: Alt An | E10: 10 | F10: m
A12: Ano | B12: Data | C12: Dia do Ano | D12: Tmin | E12: Tmax | F12: HRmin | G12: HRmax | H12: Vento | I12: Insolação real | J12: Rad. Global
C13: (1/1=1) | D13: [C] | E13: [C] | F13: [%] | G13: [%] | H13: [Km/h] | I13: [h] | J13: [MJ/m-2/dia]
A14: 2005 | B14: 2004-01-01 | C14: 1
A15: 2005 | B15: 2004-01-02 | C15: 2
A16: 2005 | B16: 2004-01-03 | C16: 3
A17: 2005 | B17: 2004-01-04 | C17: 4
A18: 2005 | B18: 2004-01-05 | C18: 5
A19: 2005 | B19: 2004-01-06 | C19: 6
A20: 2005 | B20: 2004-01-07 | C20: 7
A21: 2005 | B21: 2004-01-08 | C21: 8
A22: 2005 | B22: 2004-01-09 | C22: 9
A23: 2005 | B23: 2004-01-10 | C23: 10
A24: 2005 | B24: 2004-01-11 | C24: 11
A25: 2005 | B25: 2004-01-12 | C25: 12
A26: 2005 | B26: 2004-01-13 | C26: 13 | D26: 3.5 | E26: 13.5 | F26: 24 | G26: 100 | H26: 4.91625 | I26: 9.053669232
A27: 2005 | B27: 2004-01-14 | C27: 14 | D27: 4 | E27: 10.7 | F27: 24 | G27: 100 | H27: 4.680416667 | I27: 9.074365985
A28: 2005 | B28: 2004-01-15 | C28: 15 | D28: 3 | E28: 11.1 | F28: 24 | G28: 100 | H28: 4.315416667 | I28: 9.095843827
A29: 2005 | B29: 2004-01-16 | C29: 16 | D29: 4 | E29: 13.5 | I29: 9
A30: 2005 | B30: 2004-01-17 | C30: 17 | D30: 6 | E30: 16.9 | F30: 24 | G30: 100 | H30: 4.548333333 | I30: 9.141072108
A31: 2005 | B31: 2004-01-18 | C31: 18 | D31: 5.5 | E31: 16.5 | F31: 24 | G31: 100 | H31: 4.42125 | I31: 9.164786542
A32: 2005 | B32: 2004-01-19 | C32: 19 | D32: 9.9 | E32: 17.6 | F32: 24 | G32: 100 | H32: 7.07125 | I32: 9.189210146
A33: 2005 | B33: 2004-01-20 | C33: 20 | D33: 9.9 | E33: 16.5 | F33: 24 | G33: 100 | H33: 6.879166667 | I33: 9.21432445
A34: 2005 | B34: 2004-01-21 | C34: 21 | D34: 5.7 | E34: 14.8 | F34: 24 | G34: 100 | H34: 6.277083333 | I34: 9.240110872
A35: 2005 | B35: 2004-01-22 | C35: 22 | D35: 5.5 | E35: 15 | F35: 24 | G35: 100 | H35: 7.639583333 | I35: 9.26655076
A36: 2005 | B36: 2004-01-23 | C36: 23 | D36: 4.5 | E36: 13.5 | F36: 24 | G36: 100 | H36: 10.19 | I36: 9.293625429
A37: 2005 | B37: 2004-01-24 | C37: 24 | D37: 4.5 | E37: 14 | F37: 24 | G37: 100 | H37: 7.621666667 | I37: 9.3213162
A38: 2005 | B38: 2004-01-25 | C38: 25 | D38: 5 | E38: 14.5 | F38: 24 | G38: 100 | H38: 4.418333333 | I38: 9.349604434
A39: 2005 | B39: 2004-01-26 | C39: 26 | D39: 4.3 | E39: 14.7 | F39: 24 | G39: 100 | H39: 3.1525 | I39: 9.378471566
A40: 2005 | B40: 2004-01-27 | C40: 27 | D40: 3 | E40: 15.5 | F40: 24 | G40: 100 | H40: 2.490416667 | I40: 9.407899136
A41: 2005 | B41: 2004-01-28 | C41: 28 | D41: 2.5 | E41: 14.3 | F41: 24 | G41: 100 | H41: 3.74125 | I41: 9.43786882
A42: 2005 | B42: 2004-01-29 | C42: 29 | D42: 6.5 | E42: 13.5 | F42: 24 | G42: 100 | H42: 6.86 | I42: 9.468362457
A43: 2005 | B43: 2004-01-30 | C43: 30 | D43: 6 | E43: 13.8 | F43: 24 | G43: 100 | H43: 4.223333333 | I43: 9.499362075
A44: 2005 | B44: 2004-01-31 | C44: 31 | D44: 5.5 | E44: 13.7 | F44: 24 | G44: 100 | H44: 5.858333333 | I44: 9.530849913
A45: 2005 | B45: 2004-02-01 | C45: 32 | D45: 5.5 | E45: 13.7 | F45: 24 | G45: 100 | H45: 8.5025 | I45: 9.562808449
A46: 2005 | B46: 2004-02-02 | C46: 33 | D46: 5.8 | E46: 14.1 | F46: 24 | G46: 100 | H46: 7.00125 | I46: 9.595220412
A47: 2005 | B47: 2004-02-03 | C47: 34 | D47: 5 | E47: 14.9 | F47: 24 | G47: 100 | H47: 4.810416667 | I47: 9.628068806
A48: 2005 | B48: 2004-02-04 | C48: 35 | D48: 5 | E48: 15.2 | F48: 24 | G48: 100 | H48: 2.82 | I48: 9.661336923
A49: 2005 | B49: 2004-02-05 | C49: 36 | D49: 4.9 | E49: 14.5 | F49: 24 | G49: 100 | H49: 4.765 | I49: 9.695008359
A50: 2005 | B50: 2004-02-06 | C50: 37 | D50: 4.8 | E50: 14.1 | F50: 24 | G50: 100 | H50: 6.679166667 | I50: 9.729067027
A51: 2005 | B51: 2004-02-07 | C51: 38 | D51: 5 | E51: 15 | F51: 24 | G51: 100 | H51: 5.451498963 | I51: 9.763497166
A52: 2005 | B52: 2004-02-08 | C52: 39 | D52: 5 | E52: 14.9 | F52: 24 | G52: 100 | H52: 6.511001037 | I52: 9.798283352
A53: 2005 | B53: 2004-02-09 | C53: 40 | D53: 4.7 | E53: 15.7 | F53: 24 | G53: 100 | H53: 5.62 | I53: 9.833410507
A54: 2005 | B54: 2004-02-10 | C54: 41 | D54: 6 | E54: 13.9 | F54: 24 | G54: 100 | H54: 4.730833333 | I54: 9.8688639
A55: 2005 | B55: 2004-02-11 | C55: 42 | D55: 4 | E55: 12.6 | F55: 24 | G55: 100 | H55: 4.682742047 | I55: 9.904629158
A56: 2005 | B56: 2004-02-12 | C56: 43 | D56: 6.5 | E56: 12 | F56: 24 | G56: 100 | H56: 11.76684129 | I56: 9.940692264
A57: 2005 | B57: 2004-02-13 | C57: 44 | D57: 4 | E57: 14 | F57: 24 | G57: 100 | H57: 9.610833333 | I57: 9.977039564
A58: 2005 | B58: 2004-02-14 | C58: 45 | D58: 5 | E58: 14.2 | F58: 24 | G58: 100 | H58: 4.96875 | I58: 10.01365776
A59: 2005 | B59: 2004-02-15 | C59: 46 | D59: 3.5 | E59: 14.1 | F59: 24 | G59: 100 | H59: 4.996666667 | I59: 10.05053393
A60: 2005 | B60: 2004-02-16 | C60: 47 | D60: 7 | E60: 12.5 | F60: 24 | G60: 100 | H60: 6.814166667 | I60: 10.08765549
A61: 2005 | B61: 2004-02-17 | C61: 48 | D61: 5 | E61: 9.5 | F61: 24 | G61: 100 | H61: 8.82875 | I61: 10.12501023
A62: 2005 | B62: 2004-02-18 | C62: 49 | D62: 5.2 | E62: 13.8 | F62: 24 | G62: 100 | H62: 8.445416667 | I62: 10.16258628
A63: 2005 | B63: 2004-02-19 | C63: 50 | D63: 7 | E63: 15.3 | F63: 24 | G63: 100 | H63: 5.475416667 | I63: 10.20037214
A64: 2005 | B64: 2004-02-20 | C64: 51 | D64: 8 | E64: 16.5 | F64: 24 | G64: 100 | H64: 5.539583333 | I64: 10.23835663
A65: 2005 | B65: 2004-02-21 | C65: 52 | D65: 8 | E65: 16 | F65: 24 | G65: 100 | H65: 3.806666667 | I65: 10.27652892
A66: 2005 | B66: 2004-02-22 | C66: 53 | D66: 6 | E66: 16.8 | F66: 24 | G66: 100 | H66: 3.580833333 | I66: 10.31487851
A67: 2005 | B67: 2004-02-23 | C67: 54 | D67: 7.5 | E67: 18.9 | F67: 24 | G67: 100 | H67: 2.82 | I67: 10.35339524
A68: 2005 | B68: 2004-02-24 | C68: 55 | D68: 7 | E68: 15.3 | F68: 24 | G68: 100 | H68: 3.70375 | I68: 10.39206924
A69: 2005 | B69: 2004-02-25 | C69: 56 | D69: 6.5 | E69: 16.5 | F69: 24 | G69: 100 | H69: 3.989583333 | I69: 10.43089098
A70: 2005 | B70: 2004-02-26 | C70: 57 | D70: 8 | E70: 16.1 | F70: 24 | G70: 100 | H70: 4.5025 | I70: 10.46985119
A71: 2005 | B71: 2004-02-27 | C71: 58 | D71: 7 | E71: 16.5 | F71: 24 | G71: 100 | H71: 10.48083333 | I71: 10.50894093
A72: 2005 | B72: 2004-02-28 | C72: 59 | D72: 11 | E72: 15.4 | F72: 24 | G72: 100 | H72: 14.15541667 | I72: 10.54815152
A73: 2005 | B73: 2004-02-29 | C73: 60 | D73: 10.5 | E73: 15.5 | F73: 24 | G73: 100 | H73: 6.34625 | I73: 10.58747456
A74: 2005 | B74: 2004-03-01 | C74: 61 | D74: 6 | E74: 15.4 | F74: 24 | G74: 100 | H74: 2.679166667 | I74: 10.62690191
A75: 2005 | B75: 2004-03-02 | C75: 62 | D75: 11 | E75: 16 | F75: 24 | G75: 100 | H75: 5.900833333 | I75: 10.66642568
A76: 2005 | B76: 2004-03-03 | C76: 63 | D76: 11 | E76: 14.5 | F76: 24 | G76: 100 | H76: 4.5075 | I76: 10.70603823
A77: 2005 | B77: 2004-03-04 | C77: 64 | D77: 9.5 | E77: 13.8 | F77: 24 | G77: 100 | H77: 12.61 | I77: 10.74573212
A78: 2005 | B78: 2004-03-05 | C78: 65 | D78: 9 | E78: 12.5 | F78: 24 | G78: 100 | H78: 7.657083333 | I78: 10.78550017
A79: 2005 | B79: 2004-03-06 | C79: 66 | D79: 6 | E79: 13.5 | F79: 24 | G79: 100 | H79: 8.050833333 | I79: 10.82533539
A80: 2005 | B80: 2004-03-07 | C80: 67 | D80: 11.8 | E80: 15.1 | F80: 24 | G80: 100 | H80: 9.832083333 | I80: 10.86523097
A81: 2005 | B81: 2004-03-08 | C81: 68 | D81: 12 | E81: 16 | F81: 24 | G81: 100 | H81: 5.71 | I81: 10.90518032
A82: 2005 | B82: 2004-03-09 | C82: 69 | D82: 11.2 | E82: 16.6 | F82: 24 | G82: 100 | H82: 3.161666667 | I82: 10.94517699
A83: 2005 | B83: 2004-03-10 | C83: 70 | D83: 13.5 | E83: 15.7 | F83: 24 | G83: 100 | H83: 5.468333333 | I83: 10.98521472
A84: 2005 | B84: 2004-03-11 | C84: 71 | D84: 11.5 | E84: 16 | F84: 24 | G84: 100 | H84: 5.076666667 | I84: 11.02528738
A85: 2005 | B85: 2004-03-12 | C85: 72 | D85: 13 | E85: 16.5 | F85: 24 | G85: 100 | H85: 9.81125 | I85: 11.065389
A86: 2005 | B86: 2004-03-13 | C86: 73 | D86: 11.5 | E86: 20 | F86: 24 | G86: 100 | H86: 4.532916667 | I86: 11.10551372
A87: 2005 | B87: 2004-03-14 | C87: 74 | D87: 10 | E87: 15 | F87: 24 | G87: 100 | H87: 7.115 | I87: 11.14565581
A88: 2005 | B88: 2004-03-15 | C88: 75 | D88: 13.4 | E88: 16.5 | F88: 24 | G88: 100 | H88: 6.992083333 | I88: 11.18580964
A89: 2005 | B89: 2004-03-16 | C89: 76 | D89: 9.9 | E89: 16.5 | F89: 24 | G89: 100 | H89: 4.436666667 | I89: 11.22596968
A90: 2005 | B90: 2004-03-17 | C90: 77 | D90: 9 | E90: 17 | F90: 24 | G90: 100 | H90: 4.274583333 | I90: 11.26613047
A91: 2005 | B91: 2004-03-18 | C91: 78 | D91: 8 | E91: 19.4 | F91: 24 | G91: 100 | H91: 3.019583333 | I91: 11.30628664
A92: 2005 | B92: 2004-03-19 | C92: 79 | D92: 8.6 | E92: 22.7 | F92: 24 | G92: 100 | H92: 4.794583333 | I92: 11.34643287
A93: 2005 | B93: 2004-03-20 | C93: 80 | D93: 10 | E93: 15.5 | F93: 24 | G93: 100 | H93: 5.734583333 | I93: 11.38656388
A94: 2005 | B94: 2004-03-21 | C94: 81 | D94: 7 | E94: 14.9 | F94: 24 | G94: 100 | H94: 8.332916667 | I94: 11.42667446
A95: 2005 | B95: 2004-03-22 | C95: 82 | D95: 9 | E95: 14 | F95: 24 | G95: 100 | H95: 11.85041667 | I95: 11.46675938
A96: 2005 | B96: 2004-03-23 | C96: 83 | D96: 8.5 | E96: 14 | F96: 24 | G96: 100 | H96: 9.980416667 | I96: 11.50681348
A97: 2005 | B97: 2004-03-24 | C97: 84 | D97: 8 | E97: 16.5 | F97: 24 | G97: 100 | H97: 4.024166667 | I97: 11.54683155
A98: 2005 | B98: 2004-03-25 | C98: 85 | D98: 7.5 | E98: 15.7 | F98: 24 | G98: 100 | H98: 4.0425 | I98: 11.58680843
A99: 2005 | B99: 2004-03-26 | C99: 86 | D99: 10 | E99: 15.8 | F99: 24 | G99: 100 | H99: 4.012916667 | I99: 11.62673889
A100: 2005 | B100: 2004-03-27 | C100: 87 | D100: 9.5 | E100: 21.5 | F100: 24 | G100: 100 | H100: 7.14625 | I100: 11.66661772
A101: 2005 | B101: 2004-03-28 | C101: 88 | D101: 14 | E101: 21.2 | F101: 24 | G101: 100 | H101: 4.998333333 | I101: 11.70643964
A102: 2005 | B102: 2004-03-29 | C102: 89 | D102: 10 | E102: 20.4 | F102: 24 | G102: 100 | H102: 4.698333333 | I102: 11.74619934
A103: 2005 | B103: 2004-03-30 | C103: 90 | D103: 11.5 | E103: 20 | F103: 24 | G103: 100 | H103: 4.65375 | I103: 11.78589145
A104: 2005 | B104: 2004-03-31 | C104: 91 | D104: 7.5 | E104: 20.8 | F104: 24 | G104: 100 | H104: 3.872916667 | I104: 11.82551052
A105: 2005 | B105: 2004-04-01 | C105: 92 | D105: 7.5 | E105: 18.3 | F105: 24 | G105: 100 | H105: 5.3425 | I105: 11.86505103
A106: 2005 | B106: 2004-04-02 | C106: 93 | D106: 10 | E106: 15.2 | F106: 24 | G106: 100 | H106: 5.596666667 | I106: 11.90450738
A107: 2005 | B107: 2004-04-03 | C107: 94 | D107: 6.5 | E107: 15.1 | F107: 24 | G107: 100 | H107: 6.758333333 | I107: 11.94387386
A108: 2005 | B108: 2004-04-04 | C108: 95 | D108: 8 | E108: 16 | F108: 24 | G108: 100 | H108: 5.845833333 | I108: 11.98314465
A109: 2005 | B109: 2004-04-05 | C109: 96 | D109: 6.8 | E109: 18.4 | F109: 24 | G109: 100 | H109: 5.13125 | I109: 12.02231383
A110: 2005 | B110: 2004-04-06 | C110: 97 | D110: 9 | E110: 21.7 | F110: 24 | G110: 100 | H110: 4.447916667 | I110: 12.06137534
A111: 2005 | B111: 2004-04-07 | C111: 98 | D111: 12 | E111: 24.6 | F111: 24 | G111: 100 | H111: 3.53375 | I111: 12.10032298
A112: 2005 | B112: 2004-04-08 | C112: 99 | D112: 10 | E112: 21.5 | F112: 24 | G112: 100 | H112: 6.282916667 | I112: 12.13915042
A113: 2005 | B113: 2004-04-09 | C113: 100 | D113: 9.7 | E113: 22 | F113: 24 | G113: 100 | H113: 2.176666667 | I113: 12.17785117
A114: 2005 | B114: 2004-04-10 | C114: 101 | D114: 10 | E114: 24 | F114: 24 | G114: 100 | H114: 5.610416667 | I114: 12.21641857
A115: 2005 | B115: 2004-04-11 | C115: 102 | D115: 11 | E115: 13.2 | F115: 24 | G115: 100 | H115: 8.28625 | I115: 12.25484581
A116: 2005 | B116: 2004-04-12 | C116: 103 | D116: 8 | E116: 16 | F116: 24 | G116: 100 | H116: 7.776666667 | I116: 12.29312587
A117: 2005 | B117: 2004-04-13 | C117: 104 | D117: 7.9 | E117: 15 | F117: 24 | G117: 100 | H117: 5.49125 | I117: 12.33125159
A118: 2005 | B118: 2004-04-14 | C118: 105 | D118: 9 | E118: 15.8 | F118: 24 | G118: 100 | H118: 5.335416667 | I118: 12.36921556
A119: 2005 | B119: 2004-04-15 | C119: 106 | D119: 10 | E119: 16.6 | F119: 24 | G119: 100 | H119: 6.294583333 | I119: 12.40701022
A120: 2005 | B120: 2004-04-16 | C120: 107 | D120: 11.1 | E120: 16.5 | F120: 24 | G120: 100 | H120: 3.535833333 | I120: 12.44462778
A121: 2005 | B121: 2004-04-17 | C121: 108 | D121: 9 | E121: 18.4 | F121: 24 | G121: 100 | H121: 4.547083333 | I121: 12.48206023
A122: 2005 | B122: 2004-04-18 | C122: 109 | D122: 8 | E122: 19.5 | F122: 24 | G122: 100 | H122: 5.245833333 | I122: 12.51929935
A123: 2005 | B123: 2004-04-19 | C123: 110 | D123: 8 | E123: 20.6 | F123: 24 | G123: 100 | H123: 6.822083333 | I123: 12.5563367
A124: 2005 | B124: 2004-04-20 | C124: 111 | D124: 11 | E124: 20.8 | F124: 24 | G124: 100 | H124: 6.069583333 | I124: 12.59316359
A125: 2005 | B125: 2004-04-21 | C125: 112 | D125: 10.2 | E125: 20.2 | F125: 24 | G125: 100 | H125: 4.754166667 | I125: 12.62977111
A126: 2005 | B126: 2004-04-22 | C126: 113 | D126: 8 | E126: 21.5 | F126: 24 | G126: 100 | H126: 6.458333333 | I126: 12.6661501
A127: 2005 | B127: 2004-04-23 | C127: 114 | D127: 7.5 | E127: 16.5 | F127: 24 | G127: 100 | H127: 7.508333333 | I127: 12.70229118
A128: 2005 | B128: 2004-04-24 | C128: 115 | D128: 8 | E128: 16 | F128: 24 | G128: 100 | H128: 7.483333333 | I128: 12.73818468
A129: 2005 | B129: 2004-04-25 | C129: 116 | D129: 10 | E129: 16 | F129: 24 | G129: 100 | H129: 5.373333333 | I129: 12.77382073
A130: 2005 | B130: 2004-04-26 | C130: 117 | D130: 9 | E130: 17.5 | F130: 24 | G130: 100 | H130: 6.155833333 | I130: 12.80918916
A131: 2005 | B131: 2004-04-27 | C131: 118 | D131: 12 | E131: 18.2 | F131: 24 | G131: 100 | H131: 5.25 | I131: 12.8442796
A132: 2005 | B132: 2004-04-28 | C132: 119 | D132: 10 | E132: 23.5 | F132: 24 | G132: 100 | H132: 4.625 | I132: 12.87908137
A133: 2005 | B133: 2004-04-29 | C133: 120 | D133: 10 | E133: 23 | F133: 24 | G133: 100 | H133: 8.6925 | I133: 12.91358359
A134: 2005 | B134: 2004-04-30 | C134: 121 | D134: 10 | E134: 18.5 | F134: 24 | G134: 100 | H134: 13.25333333 | I134: 12.94777509
A135: 2005 | B135: 2004-05-01 | C135: 122 | D135: 9.5 | E135: 18 | F135: 24 | G135: 100 | H135: 8.904166667 | I135: 12.98164447
A136: 2005 | B136: 2004-05-02 | C136: 123 | D136: 10 | E136: 18.5 | F136: 24 | G136: 100 | H136: 8.029166667 | I136: 13.01518008
A137: 2005 | B137: 2004-05-03 | C137: 124 | D137: 10 | E137: 18.5 | F137: 24 | G137: 100 | H137: 8.612083333 | I137: 13.04837002
A138: 2005 | B138: 2004-05-04 | C138: 125 | D138: 10 | E138: 17.5 | F138: 24 | G138: 100 | H138: 11.07833333 | I138: 13.08120216
A139: 2005 | B139: 2004-05-05 | C139: 126 | D139: 10 | E139: 19.7 | F139: 24 | G139: 100 | H139: 9.445 | I139: 13.11366413
A140: 2005 | B140: 2004-05-06 | C140: 127 | D140: 11 | E140: 18.7 | F140: 24 | G140: 100 | H140: 8.90375 | I140: 13.14574333
A141: 2005 | B141: 2004-05-07 | C141: 128 | D141: 11 | E141: 17.9 | F141: 24 | G141: 100 | H141: 10.265 | I141: 13.17742696
A142: 2005 | B142: 2004-05-08 | C142: 129 | D142: 10.1 | E142: 17.8 | F142: 24 | G142: 100 | H142: 10.56916667 | I142: 13.20870198
A143: 2005 | B143: 2004-05-09 | C143: 130 | D143: 10.6 | E143: 19 | F143: 24 | G143: 100 | H143: 7.705833333 | I143: 13.23955518
A144: 2005 | B144: 2004-05-10 | C144: 131 | D144: 12.5 | E144: 21.3 | F144: 24 | G144: 100 | H144: 6.67 | I144: 13.26997314
A145: 2005 | B145: 2004-05-11 | C145: 132 | D145: 11 | E145: 25.7 | F145: 24 | G145: 100 | H145: 5.930416667 | I145: 13.29994227
A146: 2005 | B146: 2004-05-12 | C146: 133 | D146: 12 | E146: 26.7 | F146: 24 | G146: 100 | H146: 6.2125 | I146: 13.32944881
A147: 2005 | B147: 2004-05-13 | C147: 134 | D147: 11 | E147: 27 | F147: 24 | G147: 100 | H147: 6.004166667 | I147: 13.35847886
A148: 2005 | B148: 2004-05-14 | C148: 135 | D148: 8.5 | E148: 22.3 | F148: 24 | G148: 100 | H148: 5.470416667 | I148: 13.38701838
A149: 2005 | B149: 2004-05-15 | C149: 136 | D149: 12.9 | E149: 29.3 | F149: 24 | G149: 100 | H149: 7.952916667 | I149: 13.4150532
A150: 2005 | B150: 2004-05-16 | C150: 137 | D150: 19 | E150: 26.5 | F150: 24 | G150: 100 | H150: 5.697083333 | I150: 13.44256908
A151: 2005 | B151: 2004-05-17 | C151: 138 | D151: 13 | E151: 26 | F151: 24 | G151: 100 | H151: 6.952916667 | I151: 13.46955167
A152: 2005 | B152: 2004-05-18 | C152: 139 | D152: 16.5 | E152: 30 | F152: 24 | G152: 100 | H152: 7.41875 | I152: 13.49598658
A153: 2005 | B153: 2004-05-19 | C153: 140 | D153: 18 | E153: 27.8 | F153: 24 | G153: 100 | H153: 6.015833333 | I153: 13.52185936
A154: 2005 | B154: 2004-05-20 | C154: 141 | D154: 13 | E154: 27.5 | F154: 24 | G154: 100 | H154: 5.75625 | I154: 13.54715557
A155: 2005 | B155: 2004-05-21 | C155: 142 | D155: 14 | E155: 30.5 | F155: 24 | G155: 100 | H155: 5.802083333 | I155: 13.57186077
A156: 2005 | B156: 2004-05-22 | C156: 143 | D156: 16 | E156: 29 | F156: 24 | G156: 100 | H156: 5.58125 | I156: 13.59596052
A157: 2005 | B157: 2004-05-23 | C157: 144 | D157: 18 | E157: 31 | F157: 24 | G157: 100 | H157: 5.636666667 | I157: 13.61944049
A158: 2005 | B158: 2004-05-24 | C158: 145 | D158: 16 | E158: 31.8 | F158: 24 | G158: 100 | H158: 5.22 | I158: 13.6422864
A159: 2005 | B159: 2004-05-25 | C159: 146 | D159: 16 | E159: 33 | F159: 24 | G159: 100 | H159: 6.42875 | I159: 13.66448408
A160: 2005 | B160: 2004-05-26 | C160: 147 | D160: 16.5 | E160: 32.5 | F160: 24 | G160: 100 | H160: 5.912083333 | I160: 13.68601951
A161: 2005 | B161: 2004-05-27 | C161: 148 | D161: 14.5 | E161: 30 | F161: 24 | G161: 100 | H161: 5.387916667 | I161: 13.70687885
A162: 2005 | B162: 2004-05-28 | C162: 149 | D162: 14.5 | E162: 20.8 | F162: 24 | G162: 100 | H162: 6.0675 | I162: 13.72704842
A163: 2005 | B163: 2004-05-29 | C163: 150 | D163: 16.7 | E163: 21.5 | F163: 24 | G163: 100 | H163: 5.29 | I163: 13.74651481
A164: 2005 | B164: 2004-05-30 | C164: 151 | D164: 14 | E164: 22.6 | F164: 24 | G164: 100 | H164: 5.061666667 | I164: 13.76526485
A165: 2005 | B165: 2004-05-31 | C165: 152 | D165: 14 | E165: 23 | F165: 24 | G165: 100 | H165: 5.9275 | I165: 13.78328564
A166: 2005 | B166: 2004-06-01 | C166: 153 | D166: 14 | E166: 23 | F166: 24 | G166: 100 | H166: 6.750833333 | I166: 13.80056462
A167: 2005 | B167: 2004-06-02 | C167: 154 | D167: 14 | E167: 22.3 | F167: 24 | G167: 100 | H167: 6.13375 | I167: 13.81708957
A168: 2005 | B168: 2004-06-03 | C168: 155 | D168: 14 | E168: 22.3 | F168: 24 | G168: 100 | H168: 6.13375 | I168: 13.83284865
A169: 2005 | B169: 2004-06-04 | C169: 156 | D169: 14 | E169: 22.3 | F169: 24 | G169: 100 | H169: 6.13375 | I169: 13.84783044
A170: 2005 | B170: 2004-06-05 | C170: 157 | D170: 14 | E170: 22.3 | F170: 24 | G170: 100 | H170: 6.13375 | I170: 13.86202393
A171: 2005 | B171: 2004-06-06 | C171: 158 | D171: 14 | E171: 22.3 | F171: 24 | G171: 100 | H171: 6.13375 | I171: 13.87541862
A172: 2005 | B172: 2004-06-07 | C172: 159 | D172: 14 | E172: 22.3 | F172: 24 | G172: 100 | H172: 6.13375 | I172: 13.88800445
A173: 2005 | B173: 2004-06-08 | C173: 160 | D173: 14 | E173: 22.3 | F173: 24 | G173: 100 | H173: 6.13375 | I173: 13.89977194
A174: 2005 | B174: 2004-06-09 | C174: 161 | D174: 14 | E174: 22.3 | F174: 24 | G174: 100 | H174: 6.13375 | I174: 13.91071213
A175: 2005 | B175: 2004-06-10 | C175: 162 | D175: 14 | E175: 22.3 | F175: 24 | G175: 100 | H175: 6.13375 | I175: 13.92081662
A176: 2005 | B176: 2004-06-11 | C176: 163 | D176: 14 | E176: 22.3 | F176: 24 | G176: 100 | H176: 6.13375 | I176: 13.93007765
A177: 2005 | B177: 2004-06-12 | C177: 164 | D177: 14 | E177: 22.3 | F177: 24 | G177: 100 | H177: 6.13375 | I177: 13.93848805
A178: 2005 | B178: 2004-06-13 | C178: 165 | D178: 14 | E178: 22.3 | F178: 24 | G178: 100 | H178: 6.13375 | I178: 13.9460413
A179: 2005 | B179: 2004-06-14 | C179: 166 | D179: 14 | E179: 22.3 | F179: 24 | G179: 100 | H179: 6.13375 | I179: 13.95273154
A180: 2005 | B180: 2004-06-15 | C180: 167 | D180: 14 | E180: 22.3 | F180: 24 | G180: 100 | H180: 6.13375 | I180: 13.95855359
A181: 2005 | B181: 2004-06-16 | C181: 168 | D181: 14 | E181: 22.3 | F181: 24 | G181: 100 | H181: 6.13375 | I181: 13.96350298
A182: 2005 | B182: 2004-06-17 | C182: 169 | D182: 14 | E182: 22.3 | F182: 24 | G182: 100 | H182: 6.13375 | I182: 13.96757592
A183: 2005 | B183: 2004-06-18 | C183: 170 | D183: 14 | E183: 22.3 | F183: 24 | G183: 100 | H183: 6.13375 | I183: 13.97076936
A184: 2005 | B184: 2004-06-19 | C184: 171 | D184: 14 | E184: 22.3 | F184: 24 | G184: 100 | H184: 6.13375 | I184: 13.97308097
A185: 2005 | B185: 2004-06-20 | C185: 172 | D185: 14 | E185: 22.3 | F185: 24 | G185: 100 | H185: 6.13375 | I185: 13.97450916
A186: 2005 | B186: 2004-06-21 | C186: 173 | D186: 14 | E186: 22.3 | F186: 24 | G186: 100 | H186: 6.13375 | I186: 13.97505307
A187: 2005 | B187: 2004-06-22 | C187: 174 | D187: 14 | E187: 22.3 | F187: 24 | G187: 100 | H187: 6.13375 | I187: 13.97471261
A188: 2005 | B188: 2004-06-23 | C188: 175 | D188: 14 | E188: 22.3 | F188: 24 | G188: 100 | H188: 6.13375 | I188: 13.97348839
A189: 2005 | B189: 2004-06-24 | C189: 176 | D189: 14 | E189: 22.3 | F189: 24 | G189: 100 | H189: 6.13375 | I189: 13.97138181
A190: 2005 | B190: 2004-06-25 | C190: 177 | D190: 14 | E190: 22.3 | F190: 24 | G190: 100 | H190: 6.13375 | I190: 13.96839497
A191: 2005 | B191: 2004-06-26 | C191: 178 | D191: 14 | E191: 22.3 | F191: 24 | G191: 100 | H191: 6.13375 | I191: 13.96453071
A192: 2005 | B192: 2004-06-27 | C192: 179 | D192: 14 | E192: 22.3 | F192: 24 | G192: 100 | H192: 6.13375 | I192: 13.95979262
A193: 2005 | B193: 2004-06-28 | C193: 180 | D193: 14 | E193: 22.3 | F193: 24 | G193: 100 | H193: 6.13375 | I193: 13.95418495
A194: 2005 | B194: 2004-06-29 | C194: 181 | D194: 14 | E194: 22.3 | F194: 24 | G194: 100 | H194: 6.13375 | I194: 13.94771268
A195: 2005 | B195: 2004-06-30 | C195: 182 | D195: 14 | E195: 22.3 | F195: 24 | G195: 100 | H195: 6.13375 | I195: 13.94038147
A196: 2005 | B196: 2004-07-01 | C196: 183 | D196: 14 | E196: 22.3 | F196: 24 | G196: 100 | H196: 6.13375 | I196: 13.93219764
A197: 2005 | B197: 2004-07-02 | C197: 184 | D197: 14 | E197: 22.3 | F197: 24 | G197: 100 | H197: 6.13375 | I197: 13.92316816
A198: 2005 | B198: 2004-07-03 | C198: 185 | D198: 14 | E198: 22.3 | F198: 24 | G198: 100 | H198: 6.13375 | I198: 13.91330062
A199: 2005 | B199: 2004-07-04 | C199: 186 | D199: 14 | E199: 22.3 | F199: 24 | G199: 100 | H199: 6.13375 | I199: 13.90260322
A200: 2005 | B200: 2004-07-05 | C200: 187 | D200: 14 | E200: 22.3 | F200: 24 | G200: 100 | H200: 6.13375 | I200: 13.89108473
A201: 2005 | B201: 2004-07-06 | C201: 188 | D201: 14 | E201: 22.3 | F201: 24 | G201: 100 | H201: 6.13375 | I201: 13.87875448
A202: 2005 | B202: 2004-07-07 | C202: 189 | D202: 14 | E202: 22.3 | F202: 24 | G202: 100 | H202: 6.13375 | I202: 13.86562234
... 21 more rows

Sheet ET
A1: Ano | B1: Data | C1: Dia do Ano | D1: Tmin | E1: Tmax | F1: HRmin | G1: HRmax | H1: Vento | I1: Insolação real | J1: Rad. Global | K1: ET | L1: Rn | M1: Gama | N1: Declive | O1: es | P1: ea | Q1: U2 | R1: S0 | S1: Sc | T1: St | U1: Duração do dia
C2: (1/1=1) | D2: [C] | E2: [C] | F2: [%] | G2: [%] | H2: [Km/h] | I2: [h] | J2: [MJ/m-2/dia] | K2: [mm] | L2: [MJ m-2 d-1] | M2: [kPa C-1] | N2: [kPa C-1] | O2: [kPa] | P2: [kPa] | Q2: [m s-1] | R2: [MJ m-2 d-1] | S2: [MJ m-2 d-1] | T2: [MJ m-2 d-1] | U2: [h]
A3: 2005 | B3: 2004-01-01 | C3: 1
A4: 2005 | B4: 2004-01-02 | C4: 2
A5: 2005 | B5: 2004-01-03 | C5: 3
A6: 2005 | B6: 2004-01-04 | C6: 4
A7: 2005 | B7: 2004-01-05 | C7: 5
A8: 2005 | B8: 2004-01-06 | C8: 6
A9: 2005 | B9: 2004-01-07 | C9: 7
A10: 2005 | B10: 2004-01-08 | C10: 8
A11: 2005 | B11: 2004-01-09 | C11: 9
A12: 2005 | B12: 2004-01-10 | C12: 10
A13: 2005 | B13: 2004-01-11 | C13: 11
A14: 2005 | B14: 2004-01-12 | C14: 12
A15: 2005 | B15: 2004-01-13 | C15: 13 | D15: 3.5 | E15: 13.5 | F15: 24 | G15: 100 | H15: 4.91625 | I15: 9.053669232 | K15: 1.110918719 | L15: 1.809485439 | M15: 0.06697239126 | N15: 0.07588102375 | O15: 1.165543637 | P15: 0.5779289179 | Q15: 1.021420687 | R15: 15.57017602 | S15: 11.69320219 | T15: 11.28837762 | U15: 9.530178139
A16: 2005 | B16: 2004-01-14 | C16: 14 | D16: 4 | E16: 10.7 | F16: 24 | G16: 100 | H16: 4.680416667 | I16: 9.074365985 | K16: 0.9897700866 | L16: 1.944198991 | M16: 0.06697239126 | N16: 0.07098079104 | O16: 1.04933996 | P16: 0.5607310197 | Q16: 0.9724229661 | R16: 15.68159586 | S16: 11.77687849 | T16: 11.369157 | U16: 9.551964194
A17: 2005 | B17: 2004-01-15 | C17: 15 | D17: 3 | E17: 11.1 | F17: 24 | G17: 100 | H17: 4.315416667 | I17: 9.095843827 | K17: 0.9732019079 | L17: 1.971190693 | M17: 0.06697239126 | N17: 0.0697485651 | O17: 1.038975404 | P17: 0.5371903556 | Q17: 0.8965890377 | R17: 15.79759902 | S17: 11.86399687 | T17: 11.45325929 | U17: 9.57457245
A18: 2005 | B18: 2004-01-16 | C18: 16 | D18: 4 | E18: 13.5 | I18: 9
A19: 2005 | B19: 2004-01-17 | C19: 17 | D19: 6 | E19: 16.9 | F19: 24 | G19: 100 | H19: 4.548333333 | I19: 9.141072108 | K19: 1.25322082 | L19: 2.102589665 | M19: 0.06697239126 | N19: 0.08985153293 | O19: 1.429403978 | P19: 0.6981799474 | Q19: 0.9449807797 | R19: 16.04314679 | S19: 12.04840324 | T19: 11.63128142 | U19: 9.622181167
A20: 2005 | B20: 2004-01-18 | C20: 18 | D20: 5.5 | E20: 16.5 | F20: 24 | G20: 100 | H20: 4.42125 | I20: 9.164786542 | K20: 1.232260064 | L20: 2.161775788 | M20: 0.06697239126 | N20: 0.08758103 | O20: 1.389334781 | P20: 0.6764658421 | Q20: 0.9185774142 | R20: 16.17258165 | S20: 12.14560882 | T20: 11.72512169 | U20: 9.647143729
A21: 2005 | B21: 2004-01-19 | C21: 19 | D21: 9.9 | E21: 17.6 | F21: 24 | G21: 100 | H21: 7.07125 | I21: 9.189210146 | K21: 1.662234263 | L21: 2.418507416 | M21: 0.06697239126 | N21: 0.1023141602 | O21: 1.615147718 | P21: 0.8508032918 | Q21: 1.469152511 | R21: 16.3063804 | S21: 12.24609168 | T21: 11.82212579 | U21: 9.672852786
A22: 2005 | B22: 2004-01-20 | C22: 20 | D22: 9.9 | E22: 16.5 | F22: 24 | G22: 100 | H22: 6.879166667 | I22: 9.21432445 | K22: 1.590962412 | L22: 2.509609946 | M22: 0.06697239126 | N22: 0.09919870464 | O22: 1.547416814 | P22: 0.8345478748 | Q22: 1.429244473 | R22: 16.44448285 | S22: 12.34980662 | T22: 11.92225006 | U22: 9.699288895
A23: 2005 | B23: 2004-01-21 | C23: 21 | D23: 5.7 | E23: 14.8 | F23: 24 | G23: 100 | H23: 6.277083333 | I23: 9.240110872 | K23: 1.442466514 | L23: 2.426217878 | M23: 0.06697239126 | N23: 0.08391189734 | O23: 1.298831686 | P23: 0.6595396705 | Q23: 1.304153119 | R23: 16.5868267 | S23: 12.45670685 | T23: 12.02544936 | U23: 9.726432497
A24: 2005 | B24: 2004-01-22 | C24: 22 | D24: 5.5 | E24: 15 | F24: 24 | G24: 100 | H24: 7.639583333 | I24: 9.26655076 | K24: 1.626678065 | L24: 2.497448287 | M24: 0.06697239126 | N24: 0.08391189734 | O24: 1.303437185 | P24: 0.6558504189 | Q24: 1.587231824 | R24: 16.73334764 | S24: 12.56674408 | T24: 12.13167704 | U24: 9.754263958
A25: 2005 | B25: 2004-01-23 | C25: 23 | D25: 4.5 | E25: 13.5 | F25: 24 | G25: 100 | H25: 10.19 | I25: 9.293625429 | K25: 1.800022646 | L25: 2.573559432 | M25: 0.06697239126 | N25: 0.07810257 | O25: 1.194122189 | P25: 0.6065074705 | Q25: 2.117117071 | R25: 16.88397938 | S25: 12.67986851 | T25: 12.24088505 | U25: 9.78276361
A26: 2005 | B26: 2004-01-24 | C26: 24 | D26: 4.5 | E26: 14 | F26: 24 | G26: 100 | H26: 7.621666667 | I26: 9.3213162 | K26: 1.596423983 | L26: 2.650788747 | M26: 0.06697239126 | N26: 0.07923482172 | O26: 1.219680145 | P26: 0.6126413799 | Q26: 1.583509383 | R26: 17.03865367 | S26: 12.7960289 | T26: 12.35302391 | U26: 9.81191179
A27: 2005 | B27: 2004-01-25 | C27: 25 | D27: 5 | E27: 14.5 | F27: 24 | G27: 100 | H27: 4.418333333 | I27: 9.349604434 | K27: 1.263744745 | L27: 2.747255239 | M27: 0.06697239126 | N27: 0.08154332766 | O27: 1.260945506 | P27: 0.6339206448 | Q27: 0.9179714353 | R27: 17.19730037 | S27: 12.91517258 | T27: 12.46804277 | U27: 9.841688878
A28: 2005 | B28: 2004-01-26 | C28: 26 | D28: 4.3 | E28: 14.7 | F28: 24 | G28: 100 | H28: 3.1525 | I28: 9.378471566 | K28: 1.115265914 | L28: 2.811561045 | M28: 0.06697239126 | N28: 0.08038167125 | O28: 1.250849076 | P28: 0.6156693294 | Q28: 0.6549766012 | R28: 17.3598475 | S28: 13.03724548 | T28: 12.58588944 | U28: 9.872075333
A29: 2005 | B29: 2004-01-27 | C29: 27 | D29: 3 | E29: 15.5 | F29: 24 | G29: 100 | H29: 2.490416667 | I29: 9.407899136 | K29: 1.051551887 | L29: 2.853295682 | M29: 0.06697239126 | N29: 0.07923482172 | O29: 1.258651002 | P29: 0.5899124991 | Q29: 0.5174193954 | R29: 17.5262213 | S29: 13.1621922 | T29: 12.70651044 | U29: 9.903051722
A30: 2005 | B30: 2004-01-28 | C30: 28 | D30: 2.5 | E30: 14.3 | F30: 24 | G30: 100 | H30: 3.74125 | I30: 9.43786882 | K30: 1.211659577 | L30: 2.954788868 | M30: 0.06697239126 | N30: 0.07544347392 | O30: 1.179942411 | P30: 0.560980308 | Q30: 0.7772977667 | R30: 17.69634626 | S30: 13.28995604 | T30: 12.82985104 | U30: 9.934598758
A31: 2005 | B31: 2004-01-29 | C31: 29 | D31: 6.5 | E31: 13.5 | F31: 24 | G31: 100 | H31: 6.86 | I31: 9.468362457 | K31: 1.571499015 | L31: 3.19604712 | M31: 0.06697239126 | N31: 0.08272 | O31: 1.256856154 | P31: 0.6692414347 | Q31: 1.425262327 | R31: 17.87014519 | S31: 13.42047903 | T31: 12.95585526 | U31: 9.966697323
A32: 2005 | B32: 2004-01-30 | C32: 30 | D32: 6 | E32: 13.8 | F32: 24 | G32: 100 | H32: 4.223333333 | I32: 9.499362075 | K32: 1.310643034 | L32: 3.270215099 | M32: 0.06697239126 | N32: 0.08224751577 | O32: 1.255691388 | P32: 0.6564889259 | Q32: 0.8774574187 | R32: 18.04753929 | S32: 13.553702 | T32: 13.08446598 | U32: 9.9993285
A33: 2005 | B33: 2004-01-31 | C33: 31 | D33: 5.5 | E33: 13.7 | F33: 24 | G33: 100 | H33: 5.858333333 | I33: 9.530849913 | K33: 1.510812361 | L33: 3.354584826 | M33: 0.06697239126 | N33: 0.08084454528 | O33: 1.234662178 | P33: 0.6393444173 | Q33: 1.217151865 | R33: 18.22844821 | S33: 13.6895646 | T33: 13.21562495 | U33: 10.03247359
A34: 2005 | B34: 2004-02-01 | C34: 32 | D34: 5.5 | E34: 13.7 | F34: 24 | G34: 100 | H34: 8.5025 | I34: 9.562808449 | K34: 1.799312474 | L34: 3.457493688 | M34: 0.06697239126 | N34: 0.08084454528 | O34: 1.234662178 | P34: 0.6393444173 | Q34: 1.766515005 | R34: 18.4127901 | S34: 13.82800536 | T34: 13.34927282 | U34: 10.06611416
A35: 2005 | B35: 2004-02-02 | C35: 33 | D35: 5.8 | E35: 14.1 | F35: 24 | G35: 100 | H35: 7.00125 | I35: 9.595220412 | K35: 1.694256842 | L35: 3.566036297 | M35: 0.06697239126 | N35: 0.08248345422 | O35: 1.26477641 | P35: 0.653785826 | Q35: 1.454609018 | R35: 18.60048169 | S35: 13.96896175 | T35: 13.48534923 | U35: 10.10023201
A36: 2005 | B36: 2004-02-03 | C36: 34 | D36: 5 | E36: 14.9 | F36: 24 | G36: 100 | H36: 4.810416667 | I36: 9.628068806 | K36: 1.504904448 | L36: 3.630471517 | M36: 0.06697239126 | N36: 0.08248345422 | O36: 1.282528124 | P36: 0.6391004731 | Q36: 0.9994323105 | R36: 18.79143835 | S36: 14.1123702 | T36: 13.6237928 | U36: 10.13480927
A37: 2005 | B37: 2004-02-04 | C37: 35 | D37: 5 | E37: 15.2 | F37: 24 | G37: 100 | H37: 2.82 | I37: 9.661336923 | K37: 1.275611018 | L37: 3.733980101 | M37: 0.06697239126 | N37: 0.08319492023 | O37: 1.29903896 | P37: 0.6430630737 | Q37: 0.5858950089 | R37: 18.98557416 | S37: 14.25816619 | T37: 13.76454127 | U37: 10.16982834
A38: 2005 | B38: 2004-02-05 | C38: 36 | D38: 4.9 | E38: 14.5 | F38: 24 | G38: 100 | H38: 4.765 | I38: 9.695008359 | K38: 1.522895077 | L38: 3.852261762 | M38: 0.06697239126 | N38: 0.08130980179 | O38: 1.257914836 | P38: 0.6308899743 | Q38: 0.9899963537 | R38: 19.18280197 | S38: 14.40628428 | T38: 13.90753143 | U38: 10.20527196
A39: 2005 | B39: 2004-02-06 | C39: 37 | D39: 4.8 | E39: 14.1 | F39: 24 | G39: 100 | H39: 6.679166667 | I39: 9.729067027 | K39: 1.738363556 | L39: 3.967636986 | M39: 0.06697239126 | N39: 0.08015112348 | O39: 1.233805079 | P39: 0.6228144948 | Q39: 1.387691636 | R39: 19.38303351 | S39: 14.55665816 | T39: 14.05269929 | U39: 10.24112319
A40: 2005 | B40: 2004-02-07 | C40: 38 | D40: 5 | E40: 15 | F40: 24 | G40: 100 | H40: 5.451498963 | I40: 9.763497166 | K40: 1.673471324 | L40: 4.072497205 | M40: 0.06697239126 | N40: 0.08272 | O40: 1.288000644 | P40: 0.6404138777 | Q40: 1.132626253 | R40: 19.58617939 | S40: 14.70922073 | T40: 14.19998006 | U40: 10.27736544
A41: 2005 | B41: 2004-02-08 | C41: 39 | D41: 5 | E41: 14.9 | F41: 24 | G41: 100 | H41: 6.511001037 | I41: 9.798283352 | K41: 1.810691988 | L41: 4.189118385 | M41: 0.06697239126 | N41: 0.08248345422 | O41: 1.282528124 | P41: 0.6391004731 | Q41: 1.352752841 | R41: 19.79214927 | S41: 14.8639041 | T41: 14.34930822 | U41: 10.31398248
A42: 2005 | B42: 2004-02-09 | C42: 40 | D42: 4.7 | E42: 15.7 | F42: 24 | G42: 100 | H42: 5.62 | I42: 9.833410507 | K42: 1.774764881 | L42: 4.282877203 | M42: 0.06697239126 | N42: 0.08367228984 | O42: 1.31814971 | P42: 0.6407821652 | Q42: 1.167634734 | R42: 20.00085182 | S42: 15.02063972 | T42: 14.50061757 | U42: 10.35095843
A43: 2005 | B43: 2004-02-10 | C43: 41 | D43: 6 | E43: 13.9 | F43: 24 | G43: 100 | H43: 4.730833333 | I43: 9.8688639 | K43: 1.611640003 | L43: 4.476829742 | M43: 0.06697239126 | N43: 0.08248345422 | O43: 1.260832132 | P43: 0.6577227044 | Q43: 0.9828977439 | R43: 20.21219491 | S43: 15.17935838 | T43: 14.65384131 | U43: 10.38827779
A44: 2005 | B44: 2004-02-11 | C44: 42 | D44: 4 | E44: 12.6 | F44: 24 | G44: 100 | H44: 4.682742047 | I44: 9.904629158 | K44: 1.552503655 | L44: 4.552527195 | M44: 0.06697239126 | N44: 0.07500814601 | O44: 1.135413589 | P44: 0.5813886905 | Q44: 0.9729060969 | R44: 20.42608559 | S44: 15.33999028 | T44: 14.80891205 | U44: 10.42592543
A45: 2005 | B45: 2004-02-12 | C45: 43 | D45: 6.5 | E45: 12 | F45: 24 | G45: 100 | H45: 11.76684129 | I45: 9.940692264 | K45: 2.141672155 | L45: 4.77303537 | M45: 0.06697239126 | N45: 0.07923482172 | O45: 1.184443692 | P45: 0.6518624441 | Q45: 2.44472822 | R45: 20.64243023 | S45: 15.5024651 | T45: 14.96576192 | U45: 10.46388659
A46: 2005 | B46: 2004-02-13 | C46: 44 | D46: 4 | E46: 14 | F46: 24 | G46: 100 | H46: 9.610833333 | I46: 9.977039564 | K46: 2.157245907 | L46: 4.768932612 | M46: 0.06697239126 | N46: 0.07810257 | O46: 1.205168677 | P46: 0.5981299117 | Q46: 1.996786979 | R46: 20.86113456 | S46: 15.66671205 | T46: 15.12432255 | U46: 10.50214691
A47: 2005 | B47: 2004-02-14 | C47: 45 | D47: 5 | E47: 14.2 | F47: 24 | G47: 100 | H47: 4.96875 | I47: 10.01365776 | K47: 1.737802379 | L47: 4.921142917 | M47: 0.06697239126 | N47: 0.08084454528 | O47: 1.245077259 | P47: 0.6301122654 | Q47: 1.032328307 | R47: 21.08210374 | S47: 15.83265991 | T47: 15.28452521 | U47: 10.54069238
A48: 2005 | B48: 2004-02-15 | C48: 46 | D48: 3.5 | E48: 14.1 | F48: 24 | G48: 100 | H48: 4.996666667 | I48: 10.05053393 | K48: 1.746997534 | L48: 5.000189382 | M48: 0.06697239126 | N48: 0.07720713856 | O48: 1.196301354 | P48: 0.5853107701 | Q48: 1.03812839 | R48: 21.30524248 | S48: 16.00023711 | T48: 15.4463008 | U48: 10.5795094
A49: 2005 | B49: 2004-02-16 | C49: 47 | D49: 7 | E49: 12.5 | F49: 24 | G49: 100 | H49: 6.814166667 | I49: 10.08765549 | K49: 1.890634988 | L49: 5.278906258 | M49: 0.06697239126 | N49: 0.08154332766 | O49: 1.22480711 | P49: 0.6744080459 | Q49: 1.415739801 | R49: 21.53045507 | S49: 16.16937175 | T49: 15.60957992 | U49: 10.61858473
A50: 2005 | B50: 2004-02-17 | C50: 48 | D50: 5 | E50: 9.5 | F50: 24 | G50: 100 | H50: 8.82875 | I50: 10.12501023 | K50: 1.858514602 | L50: 5.39615216 | M50: 0.06697239126 | N50: 0.07056798547 | O50: 1.029190158 | P50: 0.5782993612 | Q50: 1.834298071 | R50: 21.75764544 | S50: 16.33999173 | T50: 15.77429294 | U50: 10.65790551
A51: 2005 | B51: 2004-02-18 | C51: 49 | D51: 5.2 | E51: 13.8 | F51: 24 | G51: 100 | H51: 8.445416667 | I51: 10.16258628 | K51: 2.150161579 | L51: 5.440189244 | M51: 0.06697239126 | N51: 0.08038167125 | O51: 1.230454765 | P51: 0.6312523029 | Q51: 1.754655132 | R51: 21.98671731 | S51: 16.5120247 | T51: 15.94037005 | U51: 10.69745925
A52: 2005 | B52: 2004-02-19 | C52: 50 | D52: 7 | E52: 15.3 | F52: 24 | G52: 100 | H52: 5.475416667 | I52: 10.20037214 | K52: 1.995406084 | L52: 5.612412756 | M52: 0.06697239126 | N52: 0.08833202205 | O52: 1.369290077 | P52: 0.709083958 | Q52: 1.137595495 | R52: 22.21757418 | S52: 16.68539821 | T52: 16.10774128 | U52: 10.73723383
A53: 2005 | B53: 2004-02-20 | C53: 51 | D53: 8 | E53: 16.5 | F53: 24 | G53: 100 | H53: 5.539583333 | I53: 10.23835663 | K53: 2.108094085 | L53: 5.768121034 | M53: 0.06697239126 | N53: 0.09402026359 | O53: 1.473996257 | P53: 0.7611273182 | Q53: 1.150927031 | R53: 22.45011945 | S53: 16.8600397 | T53: 16.2763366 | U53: 10.7772175
A54: 2005 | B54: 2004-02-21 | C54: 52 | D54: 8 | E54: 16 | F54: 24 | G54: 100 | H54: 3.806666667 | I54: 10.27652892 | K54: 1.90716489 | L54: 5.905928432 | M54: 0.06697239126 | N54: 0.09269904 | O54: 1.444556035 | P54: 0.7540616648 | Q54: 0.7908890073 | R54: 22.68425647 | S54: 17.03587661 | T54: 16.44608594 | U54: 10.81739886
A55: 2005 | B55: 2004-02-22 | C55: 53 | D55: 6 | E55: 16.8 | F55: 24 | G55: 100 | H55: 3.580833333 | I55: 10.31487851 | K55: 1.912342655 | L55: 5.942854214 | M55: 0.06697239126 | N55: 0.08959664712 | O55: 1.423315548 | P55: 0.6967187243 | Q55: 0.7439689282 | R55: 22.91988863 | S55: 17.21283636 | T55: 16.61691925 | U55: 10.85776686
A56: 2005 | B56: 2004-02-23 | C56: 54 | D56: 7.5 | E56: 18.9 | F56: 24 | G56: 100 | H56: 2.82 | I56: 10.35339524 | K56: 1.948157226 | L56: 6.112258366 | M56: 0.06697239126 | N56: 0.09919870464 | O56: 1.609295554 | P56: 0.7799392326 | Q56: 0.5858950089 | R56: 23.1569194 | S56: 17.39084647 | T56: 16.78876656 | U56: 10.89831078
A57: 2005 | B57: 2004-02-24 | C57: 55 | D57: 7 | E57: 15.3 | F57: 24 | G57: 100 | H57: 3.70375 | I57: 10.39206924 | K57: 1.931001307 | L57: 6.269851637 | M57: 0.06697239126 | N57: 0.08833202205 | O57: 1.369290077 | P57: 0.709083958 | Q57: 0.7695066096 | R57: 23.39525242 | S57: 17.56983457 | T57: 16.96155801 | U57: 10.93902026
A58: 2005 | B58: 2004-02-25 | C58: 56 | D58: 6.5 | E58: 16.5 | F58: 24 | G58: 100 | H58: 3.989583333 | I58: 10.43089098 | K58: 2.04147332 | L58: 6.365431807 | M58: 0.06697239126 | N58: 0.09010707625 | O58: 1.421664338 | P58: 0.708795399 | Q58: 0.8288925399 | R58: 23.63479158 | S58: 17.74972848 | T58: 17.1352239 | U58: 10.97988524
A59: 2005 | B59: 2004-02-26 | C59: 57 | D59: 8 | E59: 16.1 | F59: 24 | G59: 100 | H59: 4.5025 | I59: 10.46985119 | K59: 2.133300134 | L59: 6.569454317 | M59: 0.06697239126 | N59: 0.09296192623 | O59: 1.450378333 | P59: 0.7554590163 | Q59: 0.9354582544 | R59: 23.87544104 | S59: 17.93045622 | T59: 17.30969475 | U59: 11.02089599
A60: 2005 | B60: 2004-02-27 | C60: 58 | D60: 7 | E60: 16.5 | F60: 24 | G60: 100 | H60: 10.48083333 | I60: 10.50894093 | K60: 2.773478166 | L60: 6.655049817 | M60: 0.06697239126 | N60: 0.09139471391 | O60: 1.438583261 | P60: 0.7257143221 | Q60: 2.177541822 | R60: 24.11710532 | S60: 18.1119461 | T60: 17.48490136 | U60: 11.06204308
A61: 2005 | B61: 2004-02-28 | C61: 59 | D61: 11 | E61: 15.4 | F61: 24 | G61: 100 | H61: 14.15541667 | I61: 10.54815152 | K61: 2.981459857 | L61: 7.00557611 | M61: 0.06697239126 | N61: 0.09919870464 | O61: 1.530160935 | P61: 0.8657006479 | Q61: 2.940988643 | R61: 24.35968939 | S61: 18.29412673 | T61: 17.66077481 | U61: 11.10331739
A62: 2005 | B62: 2004-02-29 | C62: 60 | D62: 10.5 | E62: 15.5 | F62: 24 | G62: 100 | H62: 6.34625 | I62: 10.58747456 | K62: 2.411413942 | L62: 7.111417304 | M62: 0.06697239126 | N62: 0.09808741 | O62: 1.514308447 | P62: 0.8455699443 | Q62: 1.318523475 | R62: 24.60309867 | S62: 18.4769271 | T62: 17.83724653 | U62: 11.14471006
A63: 2005 | B63: 2004-03-01 | C63: 61 | D63: 6 | E63: 15.4 | F63: 24 | G63: 100 | H63: 2.679166667 | I63: 10.62690191 | K63: 1.965962601 | L63: 7.03910071 | M63: 0.06697239126 | N63: 0.08609634689 | O63: 1.341556947 | P63: 0.6770966599 | Q63: 0.5566348858 | R63: 24.84723914 | S63: 18.66027659 | T63: 18.01424837 | U63: 11.18621254
A64: 2005 | B64: 2004-03-02 | C64: 62 | D64: 11 | E64: 16 | F64: 24 | G64: 100 | H64: 5.900833333 | I64: 10.66642568 | K64: 2.466716243 | L64: 7.405528957 | M64: 0.06697239126 | N64: 0.1008871612 | O64: 1.564416307 | P64: 0.8739219374 | Q64: 1.225981843 | R64: 25.09201737 | S64: 18.84410504 | T64: 18.19171259 | U64: 11.22781651
A65: 2005 | B65: 2004-03-03 | C65: 63 | D65: 11 | E65: 14.5 | F65: 24 | G65: 100 | H65: 4.5075 | I65: 10.70603823 | K65: 2.283106314 | L65: 7.565669735 | M65: 0.06697239126 | N65: 0.09671423953 | O65: 1.480903796 | P65: 0.8538789347 | Q65: 0.9364970754 | R65: 25.33734059 | S65: 19.02834278 | T65: 18.36957193 | U65: 11.26951392
A66: 2005 | B66: 2004-03-04 | C66: 64 | D66: 9.5 | E66: 13.8 | F66: 24 | G66: 100 | H66: 12.61 | I66: 10.74573212 | K66: 2.82947375 | L66: 7.632827665 | M66: 0.06697239126 | N66: 0.09087766794 | O66: 1.381701656 | P66: 0.7824991943 | Q66: 2.619906405 | R66: 25.58311675 | S66: 19.21292068 | T66: 18.54775964 | U66: 11.31129697
A67: 2005 | B67: 2004-03-05 | C67: 65 | D67: 9 | E67: 12.5 | F67: 24 | G67: 100 | H67: 7.657083333 | I67: 10.78550017 | K67: 2.425335609 | L67: 7.769377536 | M67: 0.06697239126 | N67: 0.08634220328 | O67: 1.297825785 | P67: 0.7474267207 | Q67: 1.590867698 | R67: 25.82925453 | S67: 19.39777015 | T67: 18.72620953 | U67: 11.35315808
A68: 2005 | B68: 2004-03-06 | C68: 66 | D68: 6 | E68: 13.5 | F68: 24 | G68: 100 | H68: 8.050833333 | I68: 10.82533539 | K68: 2.505920677 | L68: 7.757416444 | M68: 0.06697239126 | N68: 0.08154332766 | O68: 1.240444357 | P68: 0.6528296385 | Q68: 1.672674847 | R68: 26.07566345 | S68: 19.58282325 | T68: 18.904856 | U68: 11.39508988
A69: 2005 | B69: 2004-03-07 | C69: 67 | D69: 11.8 | E69: 15.1 | F69: 24 | G69: 100 | H69: 9.832083333 | I69: 10.86523097 | K69: 2.87184019 | L69: 8.153687269 | M69: 0.06697239126 | N69: 0.1006039464 | O69: 1.549167098 | P69: 0.8973976248 | Q69: 2.042754806 | R69: 26.32225387 | S69: 19.76801266 | T69: 19.08363406 | U69: 11.43708524
A70: 2005 | B70: 2004-03-08 | C70: 68 | D70: 12 | E70: 16 | F70: 24 | G70: 100 | H70: 5.71 | I70: 10.90518032 | K70: 2.644836751 | L70: 8.290447567 | M70: 0.06697239126 | N70: 0.10375952 | O70: 1.609310024 | P70: 0.9188156542 | Q70: 1.186333511 | R70: 26.56893707 | S70: 19.95327174 | T70: 19.26247938 | U70: 11.47913718
A71: 2005 | B71: 2004-03-09 | C71: 69 | D71: 11.2 | E71: 16.6 | F71: 24 | G71: 100 | H71: 3.161666667 | I71: 10.94517699 | K71: 2.438612953 | L71: 8.371174321 | M71: 0.06697239126 | N71: 0.1031791594 | O71: 1.608614429 | P71: 0.8911950301 | Q71: 0.6568811063 | R71: 26.81562527 | S71: 20.13853458 | T71: 19.44132832 | U71: 11.52123894
A72: 2005 | B72: 2004-03-10 | C72: 70 | D72: 13.5 | E72: 15.7 | F72: 24 | G72: 100 | H72: 5.468333333 | I72: 10.98521472 | K72: 2.702150564 | L72: 8.669222063 | M72: 0.06697239126 | N72: 0.1073045473 | O72: 1.664450346 | P72: 0.9870828019 | Q72: 1.136123832 | R72: 27.06223169 | S72: 20.323736 | T72: 19.62011797 | U72: 11.56338392
A73: 2005 | B73: 2004-03-11 | C73: 71 | D73: 11.5 | E73: 16 | F73: 24 | G73: 100 | H73: 5.076666667 | I73: 11.02528738 | K73: 2.664825714 | L73: 8.672632784 | M73: 0.06697239126 | N73: 0.1023141602 | O73: 1.586536091 | P73: 0.8960417205 | Q73: 1.054749525 | R73: 27.30867057 | S73: 20.5088116 | T73: 19.79878616 | U73: 11.60556567
A74: 2005 | B74: 2004-03-12 | C74: 72 | D74: 13 | E74: 16.5 | F74: 24 | G74: 100 | H74: 9.81125 | I74: 11.065389 | K74: 3.146566275 | L74: 8.898991428 | M74: 0.06697239126 | N74: 0.1082078558 | O74: 1.686326538 | P74: 0.9734575985 | Q74: 2.038426385 | R74: 27.55485724 | S74: 20.69369779 | T74: 19.9772715 | U74: 11.64777789
A75: 2005 | B75: 2004-03-13 | C75: 73 | D75: 11.5 | E75: 20 | F75: 24 | G75: 100 | H75: 4.532916667 | I75: 11.10551372 | K75: 2.909925067 | L75: 8.903746417 | M75: 0.06697239126 | N75: 0.1144087064 | O75: 1.846541092 | P75: 0.9584429209 | Q75: 0.9417777485 | R75: 27.80070812 | S75: 20.8783318 | T75: 20.15551339 | U75: 11.69001444
A76: 2005 | B76: 2004-03-14 | C76: 74 | D76: 10 | E76: 15 | F76: 24 | G76: 100 | H76: 7.115 | I76: 11.14565581 | K76: 2.820531149 | L76: 9.013850753 | M76: 0.06697239126 | N76: 0.09535859375 | O76: 1.465617792 | P76: 0.8180310258 | Q76: 1.478242194 | R76: 28.04614079 | S76: 21.06265173 | T76: 20.33345207 | U76: 11.73226927
A77: 2005 | B77: 2004-03-15 | C77: 75 | D77: 13.4 | E77: 16.5 | F77: 24 | G77: 100 | H77: 6.992083333 | I77: 11.18580964 | K77: 3.024878285 | L77: 9.337301141 | M77: 0.06697239126 | N77: 0.1094230253 | O77: 1.706138293 | P77: 0.9932693539 | Q77: 1.452704513 | R77: 28.291074 | S77: 21.24659658 | T77: 20.51102865 | U77: 11.77453646
A78: 2005 | B78: 2004-03-16 | C78: 76 | D78: 9.9 | E78: 16.5 | F78: 24 | G78: 100 | H78: 4.436666667 | I78: 11.22596968 | K78: 2.741741103 | L78: 9.259379913 | M78: 0.06697239126 | N78: 0.09919870464 | O78: 1.547416814 | P78: 0.8345478748 | Q78: 0.9217804454 | R78: 28.5354277 | S78: 21.43010621 | T78: 20.68818509 | U78: 11.81681019
A79: 2005 | B79: 2004-03-17 | C79: 77 | D79: 9 | E79: 17 | F79: 24 | G79: 100 | H79: 4.274583333 | I79: 11.26613047 | K79: 2.761245848 | L79: 9.342314255 | M79: 0.06697239126 | N79: 0.09808741 | O79: 1.541875781 | P79: 0.8059987197 | Q79: 0.8881053334 | R79: 28.77912309 | S79: 21.61312144 | T79: 20.86486424 | U79: 11.85908471
A80: 2005 | B80: 2004-03-18 | C80: 78 | D80: 8 | E80: 19.4 | F80: 24 | G80: 100 | H80: 3.019583333 | I80: 11.30628664 | K80: 2.751597236 | L80: 9.404311803 | M80: 0.06697239126 | N80: 0.1020272982 | O80: 1.661828259 | P80: 0.8062069985 | Q80: 0.627361278 | R80: 29.02208262 | S80: 21.79558405 | T80: 21.0410099 | U80: 11.90135436
A81: 2005 | B81: 2004-03-19 | C81: 79 | D81: 8.6 | E81: 22.7 | F81: 24 | G81: 100 | H81: 4.794583333 | I81: 11.34643287 | K81: 3.250852278 | L81: 9.55040935 | M81: 0.06697239126 | N81: 0.113774418 | O81: 1.937209213 | P81: 0.8892411275 | Q81: 0.9961427109 | R81: 29.26423004 | S81: 21.97743676 | T81: 21.21656678 | U81: 11.94361354
A82: 2005 | B82: 2004-03-20 | C82: 80 | D82: 10 | E82: 15.5 | F82: 24 | G82: 100 | H82: 5.734583333 | I82: 11.38656388 | K82: 2.911628107 | L82: 9.820729348 | M82: 0.06697239126 | N82: 0.09671423953 | O82: 1.493449025 | P82: 0.8247105218 | Q82: 1.191441047 | R82: 29.50549038 | S82: 22.15862328 | T82: 21.39148053 | U82: 11.98585672
A83: 2005 | B83: 2004-03-21 | C83: 81 | D83: 7 | E83: 14.9 | F83: 24 | G83: 100 | H83: 8.332916667 | I83: 11.42667446 | K83: 3.027031453 | L83: 9.821477889 | M83: 0.06697239126 | N83: 0.08733198645 | O83: 1.347213145 | P83: 0.7037854943 | Q83: 1.731281661 | R83: 29.74579005 | S83: 22.33908833 | T83: 21.56569779 | U83: 12.02807837
A84: 2005 | B84: 2004-03-22 | C84: 82 | D84: 9 | E84: 14 | F84: 24 | G84: 100 | H84: 11.85041667 | I84: 11.46675938 | K84: 3.221047112 | L84: 10.0614236 | M84: 0.06697239126 | N84: 0.09010707625 | O84: 1.372351707 | P84: 0.765312942 | Q84: 2.462092191 | R84: 29.98505677 | S84: 22.51877764 | T84: 21.73916616 | U84: 12.07027303
A85: 2005 | B85: 2004-03-23 | C85: 83 | D85: 8.5 | E85: 14 | F85: 24 | G85: 100 | H85: 9.980416667 | I85: 11.50681348 | K85: 3.130319903 | L85: 10.17014064 | M85: 0.06697239126 | N85: 0.08883591797 | O85: 1.353267701 | P85: 0.7462289356 | Q85: 2.07357316 | R85: 30.22321965 | S85: 22.69763796 | T85: 21.91183425 | U85: 12.11243524
A86: 2005 | B86: 2004-03-24 | C86: 84 | D86: 8 | E86: 16.5 | F86: 24 | G86: 100 | H86: 4.024166667 | I86: 11.54683155 | K86: 2.88140497 | L86: 10.23975363 | M86: 0.06697239126 | N86: 0.09402026359 | O86: 1.473996257 | P86: 0.7611273182 | Q86: 0.8360777181 | R86: 30.46020918 | S86: 22.87561709 | T86: 22.08365165 | U86: 12.15455953
A87: 2005 | B87: 2004-03-25 | C87: 85 | D87: 7.5 | E87: 15.7 | F87: 24 | G87: 100 | H87: 4.0425 | I87: 11.58680843 | K87: 2.849479752 | L87: 10.36060862 | M87: 0.06697239126 | N87: 0.09062014208 | O87: 1.409310321 | P87: 0.7319427766 | Q87: 0.8398867282 | R87: 30.69595723 | S87: 23.05266388 | T87: 22.25456899 | U87: 12.19664045
A88: 2005 | B88: 2004-03-26 | C88: 86 | D88: 10 | E88: 15.8 | F88: 24 | G88: 100 | H88: 4.012916667 | I88: 11.62673889 | K88: 2.954427487 | L88: 10.61168587 | M88: 0.06697239126 | N88: 0.09753602547 | O88: 1.510528101 | P88: 0.8288095002 | Q88: 0.8337403709 | R88: 30.93039709 | S88: 23.22872822 | T88: 22.42453789 | U88: 12.23867252
A89: 2005 | B89: 2004-03-27 | C89: 87 | D89: 9.5 | E89: 21.5 | F89: 24 | G89: 100 | H89: 7.14625 | I89: 11.66661772 | K89: 3.711663114 | L89: 10.65937662 | M89: 0.06697239126 | N89: 0.1128289662 | O89: 1.874926631 | P89: 0.9008731883 | Q89: 1.484734825 | R89: 31.16346349 | S89: 23.40376108 | T89: 22.59351103 | U89: 12.28065023
A90: 2005 | B90: 2004-03-28 | C90: 88 | D90: 14 | E90: 21.2 | F90: 24 | G90: 100 | H90: 4.998333333 | I90: 11.70643964 | K90: 3.581240239 | L90: 11.07012432 | M90: 0.06697239126 | N90: 0.1267352845 | O90: 2.057028663 | P90: 1.100725644 | Q90: 1.038474664 | R90: 31.39509254 | S90: 23.5777145 | T90: 22.76144209 | U90: 12.32256804
A91: 2005 | B91: 2004-03-29 | C91: 89 | D91: 10 | E91: 20.4 | F91: 24 | G91: 100 | H91: 4.698333333 | I91: 11.74619934 | K91: 3.405093546 | L91: 10.94973088 | M91: 0.06697239126 | N91: 0.1109594278 | O91: 1.811351178 | P91: 0.9010070386 | Q91: 0.9761454078 | R91: 31.62522182 | S91: 23.75054159 | T91: 22.92828582 | U91: 12.36442036
A92: 2005 | B92: 2004-03-30 | C92: 90 | D92: 11.5 | E92: 20 | F92: 24 | G92: 100 | H92: 4.65375 | I92: 11.78589145 | K92: 3.443891603 | L92: 11.16637956 | M92: 0.06697239126 | N92: 0.1144087064 | O92: 1.846541092 | P92: 0.9584429209 | Q92: 0.9668825878 | R92: 31.85379034 | S92: 23.92219654 | T92: 23.09399799 | U92: 12.40620152
A93: 2005 | B93: 2004-03-31 | C93: 91 | D93: 7.5 | E93: 20.8 | F93: 24 | G93: 100 | H93: 3.872916667 | I93: 11.82551052 | K93: 3.320132114 | L93: 11.07940339 | M93: 0.06697239126 | N93: 0.1046356361 | O93: 1.745768964 | P93: 0.8126928508 | Q93: 0.8046533847 | R93: 32.08073853 | S93: 24.09263463 | T93: 23.25853543 | U93: 12.44790581
A94: 2005 | B94: 2004-04-01 | C94: 92 | D94: 7.5 | E94: 18.3 | F94: 24 | G94: 100 | H94: 5.3425 | I94: 11.86505103 | K94: 3.338806556 | L94: 11.2257908 | M94: 0.06697239126 | N94: 0.09753602547 | O94: 1.569053856 | P94: 0.770281225 | Q94: 1.109980172 | R94: 32.30600827 | S94: 24.26181221 | T94: 23.421856 | U94: 12.4895274
A95: 2005 | B95: 2004-04-02 | C95: 93 | D95: 10 | E95: 15.2 | F95: 24 | G95: 100 | H95: 5.596666667 | I95: 11.90450738 | K95: 3.229312094 | L95: 11.51354309 | M95: 0.06697239126 | N95: 0.09589876248 | O95: 1.476656108 | P95: 0.8206802218 | Q95: 1.162786903 | R95: 32.5295429 | S95: 24.42968672 | T95: 23.5839186 | U95: 12.5310604
A96: 2005 | B96: 2004-04-03 | C96: 94 | D96: 6.5 | E96: 15.1 | F96: 24 | G96: 100 | H96: 6.758333333 | I96: 11.94387386 | K96: 3.232752408 | L96: 11.47570067 | M96: 0.06697239126 | N96: 0.08658869376 | O96: 1.341270304 | P96: 0.6895008308 | Q96: 1.404139634 | R96: 32.75128717 | S96: 24.59621666 | T96: 23.7446832 | U96: 12.5724988
A97: 2005 | B97: 2004-04-04 | C97: 95 | D97: 8 | E97: 16 | F97: 24 | G97: 100 | H97: 5.845833333 | I97: 11.98314465 | K97: 3.298662825 | L97: 11.64860755 | M97: 0.06697239126 | N97: 0.09269904 | O97: 1.444556035 | P97: 0.7540616648 | Q97: 1.214554813 | R97: 32.97118727 | S97: 24.76136164 | T97: 23.90411077 | U97: 12.61383647
A98: 2005 | B98: 2004-04-05 | C98: 96 | D98: 6.8 | E98: 18.4 | F98: 24 | G98: 100 | H98: 5.13125 | I98: 12.02231383 | K98: 3.410001374 | L98: 11.68815635 | M98: 0.06697239126 | N98: 0.09589876248 | O98: 1.551400415 | P98: 0.7476001909 | Q98: 1.066089987 | R98: 33.18919084 | S98: 24.92508232 | T98: 24.06216336 | U98: 12.65506719
A99: 2005 | B99: 2004-04-06 | C99: 97 | D99: 9 | E99: 21.7 | F99: 24 | G99: 100 | H99: 4.447916667 | I99: 12.06137534 | K99: 3.666845559 | L99: 11.88455397 | M99: 0.06697239126 | N99: 0.1118906512 | O99: 1.871046048 | P99: 0.8849995838 | Q99: 0.9241177925 | R99: 33.40524691 | S99: 25.08734043 | T99: 24.21880401 | U99: 12.69618457
A100: 2005 | B100: 2004-04-07 | C100: 98 | D100: 12 | E100: 24.6 | F100: 24 | G100: 100 | H100: 3.53375 | I100: 12.10032298 | K100: 3.865202817 | L100: 12.17148361 | M100: 0.06697239126 | N100: 0.131702987 | O100: 2.246856656 | P100: 1.071826846 | Q100: 0.7341866977 | R100: 33.61930594 | S100: 25.24809876 | T100: 24.37399681 | U100: 12.73718208
A101: 2005 | B101: 2004-04-08 | C101: 99 | D101: 10 | E101: 21.5 | F101: 24 | G101: 100 | H101: 6.282916667 | I101: 12.13915042 | K101: 3.949429841 | L101: 12.1752651 | M101: 0.06697239126 | N101: 0.1144087064 | O101: 1.895179209 | P101: 0.921125766 | Q101: 1.305365077 | R101: 33.8313198 | S101: 25.40732117 | T101: 24.52770686 | U101: 12.77805307
A102: 2005 | B102: 2004-04-09 | C102: 100 | D102: 9.7 | E102: 22 | F102: 24 | G102: 100 | H102: 2.176666667 | I102: 12.17785117 | K102: 3.488643125 | L102: 12.2744834 | M102: 0.06697239126 | N102: 0.1150462001 | O102: 1.922724965 | P102: 0.9184469696 | Q102: 0.4522333816 | R102: 34.04124174 | S102: 25.56497255 | T102: 24.67990026 | U102: 12.8187907
A103: 2005 | B103: 2004-04-10 | C103: 101 | D103: 10 | E103: 24 | F103: 24 | G103: 100 | H103: 5.610416667 | I103: 12.21641857 | K103: 4.141843412 | L103: 12.40441781 | M103: 0.06697239126 | N103: 0.12261209 | O103: 2.105012885 | P103: 0.9714858481 | Q103: 1.165643661 | R103: 34.24902639 | S103: 25.72101882 | T103: 24.83054413 | U103: 12.85938797
A104: 2005 | B104: 2004-04-11 | C104: 102 | D104: 11 | E104: 13.2 | F104: 24 | G104: 100 | H104: 8.28625 | I104: 12.25484581 | K104: 3.470197112 | L104: 12.67811913 | M104: 0.06697239126 | N104: 0.09322549003 | O104: 1.414061151 | P104: 0.8378366998 | Q104: 1.721585999 | R104: 34.45462976 | S104: 25.87542695 | T104: 24.97960657 | U104: 12.89983769
A105: 2005 | B105: 2004-04-12 | C105: 103 | D105: 8 | E105: 16 | F105: 24 | G105: 100 | H105: 7.776666667 | I105: 12.29312587 | K105: 3.62475955 | L105: 12.59027589 | M105: 0.06697239126 | N105: 0.09269904 | O105: 1.444556035 | P105: 0.7540616648 | Q105: 1.615712832 | R105: 34.65800919 | S105: 26.0281649 | T105: 25.12705666 | U105: 12.9401325
A106: 2005 | B106: 2004-04-13 | C106: 104 | D106: 7.9 | E106: 15 | F106: 24 | G106: 100 | H106: 5.49125 | I106: 12.33125159 | K106: 3.405988942 | L106: 12.71341922 | M106: 0.06697239126 | N106: 0.08985153293 | O106: 1.384460549 | P106: 0.7368737827 | Q106: 1.140885095 | R106: 34.85912338 | S106: 26.17920166 | T106: 25.27286445 | U106: 12.98026483
A107: 2005 | B107: 2004-04-14 | C107: 105 | D107: 9 | E107: 15.8 | F107: 24 | G107: 100 | H107: 5.335416667 | I107: 12.36921556 | K107: 3.514172734 | L107: 12.86412244 | M107: 0.06697239126 | N107: 0.09482119552 | O107: 1.470614649 | P107: 0.7888960481 | Q107: 1.108508509 | R107: 35.05793232 | S107: 26.32850717 | T107: 25.41700093 | U107: 13.02022691
A108: 2005 | B108: 2004-04-15 | C108: 106 | D108: 10 | E108: 16.6 | F108: 24 | G108: 100 | H108: 6.294583333 | I108: 12.40701022 | K108: 3.700713415 | L108: 13.01426171 | M108: 0.06697239126 | N108: 0.09975864151 | O108: 1.557502835 | P108: 0.8400834363 | Q108: 1.307788992 | R108: 35.25439733 | S108: 26.4760524 | T108: 25.55943806 | U108: 13.06001076
A109: 2005 | B109: 2004-04-16 | C109: 107 | D109: 11.1 | E109: 16.5 | F109: 24 | G109: 100 | H109: 3.535833333 | I109: 12.44462778 | K109: 3.553602278 | L109: 13.18591355 | M109: 0.06697239126 | N109: 0.1026017566 | O109: 1.598228931 | P109: 0.8853599922 | Q109: 0.7346195398 | R109: 35.44848099 | S109: 26.62180922 | T109: 25.70014871 | U109: 13.09960819
A110: 2005 | B110: 2004-04-17 | C110: 108 | D110: 9 | E110: 18.4 | F110: 24 | G110: 100 | H110: 4.547083333 | I110: 12.48206023 | K110: 3.712634425 | L110: 13.15613446 | M110: 0.06697239126 | N110: 0.1020272982 | O110: 1.631248364 | P110: 0.8274481396 | Q110: 0.9447210745 | R110: 35.64014713 | S110: 26.7657505 | T110: 25.83910667 | U110: 13.13901077
A111: 2005 | B111: 2004-04-18 | C111: 109 | D111: 8 | E111: 19.5 | F111: 24 | G111: 100 | H111: 5.245833333 | I111: 12.51929935 | K111: 3.855756588 | L111: 13.20362726 | M111: 0.06697239126 | N111: 0.1023141602 | O111: 1.668853915 | P111: 0.8078931561 | Q111: 1.089896301 | R111: 35.82936085 | S111: 26.90785 | T111: 25.97628662 | U111: 13.17820985
A112: 2005 | B112: 2004-04-19 | C112: 110 | D112: 8 | E112: 20.6 | F112: 24 | G112: 100 | H112: 6.822083333 | I112: 12.5563367 | K112: 4.134704975 | L112: 13.29984582 | M112: 0.06697239126 | N112: 0.1055184826 | O112: 1.748706628 | P112: 0.8270578071 | Q112: 1.417384601 | R112: 36.01608844 | S112: 27.04808242 | T112: 26.11166412 | U112: 13.21719652
A113: 2005 | B113: 2004-04-20 | C113: 111 | D113: 11 | E113: 20.8 | F113: 24 | G113: 100 | H113: 6.069583333 | I113: 12.59316359 | K113: 4.186835217 | L113: 13.55770944 | M113: 0.06697239126 | N113: 0.1153661532 | O113: 1.883602811 | P113: 0.9505266982 | Q113: 1.26104205 | R113: 36.20029739 | S113: 27.18642334 | T113: 26.24521561 | U113: 13.25596167
A114: 2005 | B114: 2004-04-21 | C114: 112 | D114: 10.2 | E114: 20.2 | F114: 24 | G114: 100 | H114: 4.754166667 | I114: 12.62977111 | K114: 4.002682833 | L114: 13.61745976 | M114: 0.06697239126 | N114: 0.1109594278 | O114: 1.804906555 | P114: 0.9057455968 | Q114: 0.987745575 | R114: 36.38195636 | S114: 27.32284923 | T114: 26.37691836 | U114: 13.2944959
A115: 2005 | B115: 2004-04-22 | C115: 113 | D115: 8 | E115: 21.5 | F115: 24 | G115: 100 | H115: 6.458333333 | I115: 12.6661501 | K115: 4.249034682 | L115: 13.59933339 | M115: 0.06697239126 | N115: 0.1082078558 | O115: 1.817660078 | P115: 0.8436066353 | Q115: 1.341810378 | R115: 36.56103515 | S115: 27.4573374 | T115: 26.50675049 | U115: 13.33278958
A116: 2005 | B116: 2004-04-23 | C116: 114 | D116: 7.5 | E116: 16.5 | F116: 24 | G116: 100 | H116: 7.508333333 | I116: 12.70229118 | K116: 3.863675912 | L116: 13.72172669 | M116: 0.06697239126 | N116: 0.09269904 | O116: 1.456022682 | P116: 0.7431537434 | Q116: 1.559962775 | R116: 36.73750469 | S116: 27.58986602 | T116: 26.6346909 | U116: 13.37083282
A117: 2005 | B117: 2004-04-24 | C117: 115 | D117: 8 | E117: 16 | F117: 24 | G117: 100 | H117: 7.483333333 | I117: 12.73818468 | K117: 3.848809174 | L117: 13.84819614 | M117: 0.06697239126 | N117: 0.09269904 | O117: 1.444556035 | P117: 0.7540616648 | Q117: 1.55476867 | R117: 36.911337 | S117: 27.72041408 | T117: 26.76071932 | U117: 13.40861546
A118: 2005 | B118: 2004-04-25 | C118: 116 | D118: 10 | E118: 16 | F118: 24 | G118: 100 | H118: 5.373333333 | I118: 12.77382073 | K118: 3.803345342 | L118: 14.04318002 | M118: 0.06697239126 | N118: 0.09808741 | O118: 1.522075166 | P118: 0.8315807956 | Q118: 1.116386234 | R118: 37.08250515 | S118: 27.84896137 | T118: 26.88481623 | U118: 13.44612708
A119: 2005 | B119: 2004-04-26 | C119: 117 | D119: 9 | E119: 17.5 | F119: 24 | G119: 100 | H119: 6.155833333 | I119: 12.80918916 | K119: 3.964891947 | L119: 14.06549825 | M119: 0.06697239126 | N119: 0.09947831422 | O119: 1.573003161 | P119: 0.813469291 | Q119: 1.278961711 | R119: 37.25098328 | S119: 27.97548844 | T119: 27.00696287 | U119: 13.48335701
A120: 2005 | B120: 2004-04-27 | C120: 118 | D120: 12 | E120: 18.2 | F120: 24 | G120: 100 | H120: 5.25 | I120: 12.8442796 | K120: 4.084939688 | L120: 14.31897873 | M120: 0.06697239126 | N120: 0.1103425297 | O120: 1.745202448 | P120: 0.9514298359 | Q120: 1.090761985 | R120: 37.41674652 | S120: 28.09997664 | T120: 27.12714123 | U120: 13.52029431
A121: 2005 | B121: 2004-04-28 | C121: 119 | D121: 10 | E121: 23.5 | F121: 24 | G121: 100 | H121: 4.625 | I121: 12.87908137 | K121: 4.40274112 | L121: 14.26348881 | M121: 0.06697239126 | N121: 0.120930092 | O121: 2.06079901 | P121: 0.9608745183 | Q121: 0.9609093674 | R121: 37.579771 | S121: 28.22240802 | T121: 27.24533398 | U121: 13.55692776
A122: 2005 | B122: 2004-04-29 | C122: 120 | D122: 10 | E122: 23 | F122: 24 | G122: 100 | H122: 8.6925 | I122: 12.91358359 | K122: 4.836866665 | L122: 14.3532127 | M122: 0.06697239126 | N122: 0.1192689637 | O122: 2.017733701 | P122: 0.950538844 | Q122: 1.8059902 | R122: 37.74003382 | S122: 28.3427654 | T122: 27.36152452 | U122: 13.59324588
A123: 2005 | B123: 2004-04-30 | C123: 121 | D123: 10 | E123: 18.5 | F123: 24 | G123: 100 | H123: 13.25333333 | I123: 12.94777509 | K123: 4.633740779 | L123: 14.46723831 | M123: 0.06697239126 | N123: 0.1052234498 | O123: 1.677813522 | P123: 0.868958001 | Q123: 2.753568032 | R123: 37.89751299 | S123: 28.46103225 | T123: 27.47569691 | U123: 13.62923694
A124: 2005 | B124: 2004-05-01 | C124: 122 | D124: 9.5 | E124: 18 | F124: 24 | G124: 100 | H124: 8.904166667 | I124: 12.98164447 | K124: 4.311295698 | L124: 14.53241018 | M124: 0.06697239126 | N124: 0.1023141602 | O124: 1.624665241 | P124: 0.8408104546 | Q124: 1.849966953 | R124: 38.05218743 | S124: 28.57719276 | T124: 27.58783588 | U124: 13.66488892
A125: 2005 | B125: 2004-05-02 | C125: 123 | D125: 10 | E125: 18.5 | F125: 24 | G125: 100 | H125: 8.029166667 | I125: 13.01518008 | K125: 4.337089872 | L125: 14.63835531 | M125: 0.06697239126 | N125: 0.1052234498 | O125: 1.677813522 | P125: 0.868958001 | Q125: 1.668173289 | R125: 38.20403694 | S125: 28.69123174 | T125: 27.69792678 | U125: 13.70018956
A126: 2005 | B126: 2004-05-03 | C126: 124 | D126: 10 | E126: 18.5 | F126: 24 | G126: 100 | H126: 8.612083333 | I126: 13.04837002 | K126: 4.394223646 | L126: 14.72153748 | M126: 0.06697239126 | N126: 0.1052234498 | O126: 1.677813522 | P126: 0.868958001 | Q126: 1.789282497 | R126: 38.35304219 | S126: 28.80313468 | T126: 27.80595559 | U126: 13.73512634
A127: 2005 | B127: 2004-05-04 | C127: 125 | D127: 10 | E127: 17.5 | F127: 24 | G127: 100 | H127: 11.07833333 | I127: 13.08120216 | K127: 4.446972403 | L127: 14.81421078 | M127: 0.06697239126 | N127: 0.1023141602 | O127: 1.612916613 | P127: 0.853382743 | Q127: 2.301680924 | R127: 38.49918464 | S127: 28.91288767 | T127: 27.91190886 | U127: 13.76968648
A128: 2005 | B128: 2004-05-05 | C128: 126 | D128: 10 | E128: 19.7 | F128: 24 | G128: 100 | H128: 9.445 | I128: 13.11366413 | K128: 4.619528864 | L128: 14.87219006 | M128: 0.06697239126 | N128: 0.1088138981 | O128: 1.760539595 | P128: 0.8888122586 | Q128: 1.962332751 | R128: 38.64244657 | S128: 29.02047737 | T128: 28.01577376 | U128: 13.80385698
A129: 2005 | B129: 2004-05-06 | C129: 127 | D129: 11 | E129: 18.7 | F129: 24 | G129: 100 | H129: 8.90375 | I129: 13.14574333 | K129: 4.515222316 | L129: 15.01575859 | M129: 0.06697239126 | N129: 0.1088138981 | O129: 1.733568108 | P129: 0.9145183695 | Q129: 1.849880385 | R129: 38.78281101 | S129: 29.12589107 | T129: 28.11753798 | U129: 13.83762456
A130: 2005 | B130: 2004-05-07 | C130: 128 | D130: 11 | E130: 17.9 | F130: 24 | G130: 100 | H130: 10.265 | I130: 13.17742696 | K130: 4.523408323 | L130: 15.10087151 | M130: 0.06697239126 | N130: 0.1064081046 | O130: 1.680787827 | P130: 0.901851102 | Q130: 2.132699385 | R130: 38.92026175 | S130: 29.22911657 | T130: 28.21718977 | U130: 13.87097575
A131: 2005 | B131: 2004-05-08 | C131: 129 | D131: 10.1 | E131: 17.8 | F131: 24 | G131: 100 | H131: 10.56916667 | I131: 13.20870198 | K131: 4.516337151 | L131: 15.1262894 | M131: 0.06697239126 | N131: 0.1034689691 | O131: 1.63613401 | P131: 0.8620882819 | Q131: 2.195894326 | R131: 39.05478329 | S131: 29.33014225 | T131: 28.31471788 | U131: 13.90389682
A132: 2005 | B132: 2004-05-09 | C132: 130 | D132: 10.6 | E132: 19 | F132: 24 | G132: 100 | H132: 7.705833333 | I132: 13.23955518 | K132: 4.498647022 | L132: 15.21513331 | M132: 0.06697239126 | N132: 0.1085104922 | O132: 1.736730263 | P132: 0.9021781857 | Q132: 1.600996202 | R132: 39.18636082 | S132: 29.42895697 | T132: 28.41011159 | U132: 13.93637388
A133: 2005 | B133: 2004-05-10 | C133: 131 | D133: 12.5 | E133: 21.3 | F133: 24 | G133: 100 | H133: 6.67 | I133: 13.26997314 | K133: 4.729758927 | L133: 15.38705906 | M133: 0.06697239126 | N133: 0.1219367731 | O133: 1.990246319 | P133: 1.028058181 | Q133: 1.385787131 | R133: 39.3149802 | S133: 29.52555013 | T133: 28.50336064 | U133: 13.96839278
A134: 2005 | B134: 2004-05-11 | C134: 132 | D134: 11 | E134: 25.7 | F134: 24 | G134: 100 | H134: 5.930416667 | I134: 13.29994227 | K134: 5.053758069 | L134: 15.36454638 | M134: 0.06697239126 | N134: 0.1320644183 | O134: 2.306621575 | P134: 1.052051202 | Q134: 1.232128201 | R134: 39.44062793 | S134: 29.61991158 | T134: 28.59445525 | U134: 13.99993923
A135: 2005 | B135: 2004-05-12 | C135: 133 | D135: 12 | E135: 26.7 | F135: 24 | G135: 100 | H135: 6.2125 | I135: 13.32944881 | K135: 5.24197659 | L135: 15.50058151 | M135: 0.06697239126 | N135: 0.1394818133 | O135: 2.451964806 | P135: 1.121052802 | Q135: 1.290735015 | R135: 39.56329114 | S135: 29.71203165 | T135: 28.68338608 | U135: 14.03099875
A136: 2005 | B136: 2004-05-13 | C136: 134 | D136: 11 | E136: 27 | F136: 24 | G136: 100 | H136: 6.004166667 | I136: 13.35847886 | K136: 5.230806366 | L136: 15.5088865 | M136: 0.06697239126 | N136: 0.13684447 | O136: 2.43822582 | P136: 1.08363622 | Q136: 1.247450809 | R136: 39.68295754 | S136: 29.80190111 | T136: 28.77014422 | U136: 14.0615567
A137: 2005 | B137: 2004-05-14 | C137: 135 | D137: 8.5 | E137: 22.3 | F137: 24 | G137: 100 | H137: 5.470416667 | I137: 13.38701838 | K137: 4.629107013 | L137: 15.42785619 | M137: 0.06697239126 | N137: 0.1122026327 | O137: 1.900326473 | P137: 0.8775230409 | Q137: 1.136556674 | R137: 39.79961543 | S137: 29.88951119 | T137: 28.85472119 | U137: 14.09159829
A138: 2005 | B138: 2004-05-15 | C138: 136 | D138: 12.9 | E138: 29.3 | F138: 24 | G138: 100 | H138: 7.952916667 | I138: 13.4150532 | K138: 5.861702439 | L138: 15.78429303 | M138: 0.06697239126 | N138: 0.1533574951 | O138: 2.781133003 | P138: 1.23250071 | Q138: 1.65233127 | R138: 39.91325366 | S138: 29.9748535 | T138: 28.93710891 | U138: 14.12110863
A139: 2005 | B139: 2004-05-16 | C139: 137 | D139: 19 | E139: 26.5 | F139: 24 | G139: 100 | H139: 5.697083333 | I139: 13.44256908 | K139: 5.481826798 | L139: 16.32629677 | M139: 0.06697239126 | N139: 0.1675389208 | O139: 2.828789536 | P139: 1.513461566 | Q139: 1.18364989 | R139: 40.02386162 | S139: 30.05792007 | T139: 29.01729967 | U139: 14.15007271
A140: 2005 | B140: 2004-05-17 | C140: 138 | D140: 13 | E140: 26 | F140: 24 | G140: 100 | H140: 6.952916667 | I140: 13.46955167 | K140: 5.369003974 | L140: 15.87870004 | M140: 0.06697239126 | N140: 0.1406258962 | O140: 2.42868513 | P140: 1.151623661 | Q140: 1.444567082 | R140: 40.13142919 | S140: 30.13870332 | T140: 29.09528617 | U140: 14.17847544
A141: 2005 | B141: 2004-05-18 | C141: 139 | D141: 16.5 | E141: 30 | F141: 24 | G141: 100 | H141: 7.41875 | I141: 13.49598658 | K141: 6.006548962 | L141: 16.25281641 | M141: 0.06697239126 | N141: 0.1720561955 | O141: 3.059424326 | P141: 1.447130777 | Q141: 1.541350566 | R141: 40.23594679 | S141: 30.21719604 | T141: 29.17106142 | U141: 14.20630166
A142: 2005 | B142: 2004-05-19 | C142: 140 | D142: 18 | E142: 27.8 | F142: 24 | G142: 100 | H142: 6.015833333 | I142: 13.52185936 | K142: 5.646693061 | L142: 16.4154714 | M142: 0.06697239126 | N142: 0.1688831545 | O142: 2.899193356 | P142: 1.479661192 | Q142: 1.249874725 | R142: 40.33740529 | S142: 30.29339137 | T142: 29.24461883 | U142: 14.23353617
A143: 2005 | B143: 2004-05-20 | C143: 141 | D143: 13 | E143: 27.5 | F143: 24 | G143: 100 | H143: 5.75625 | I143: 13.54715557 | K143: 5.412521839 | L143: 16.06052919 | M143: 0.06697239126 | N143: 0.1464723286 | O143: 2.583693687 | P143: 1.188825714 | Q143: 1.195942605 | R143: 40.43579603 | S143: 30.36728282 | T143: 29.31595212 | U143: 14.26016376
A144: 2005 | B144: 2004-05-21 | C144: 142 | D144: 14 | E144: 30.5 | F144: 24 | G144: 100 | H144: 5.802083333 | I144: 13.57186077 | K144: 5.77864822 | L144: 16.22662132 | M144: 0.06697239126 | N144: 0.1631251948 | O144: 2.981823664 | P144: 1.322676444 | Q144: 1.20546513 | R144: 40.5311108 | S144: 30.43886421 | T144: 29.38505533 | U144: 14.28616923
A145: 2005 | B145: 2004-05-22 | C145: 143 | D145: 16 | E145: 29 | F145: 24 | G145: 100 | H145: 5.58125 | I145: 13.59596052 | K145: 5.670466455 | L145: 16.41099091 | M145: 0.06697239126 | N145: 0.1653192187 | O145: 2.911210041 | P145: 1.38918478 | Q145: 1.159583872 | R145: 40.62334184 | S145: 30.50812973 | T145: 29.45192284 | U145: 14.31153739
A146: 2005 | B146: 2004-05-23 | C146: 144 | D146: 18 | E146: 31 | F146: 24 | G146: 100 | H146: 5.636666667 | I146: 13.61944049 | K146: 5.966876303 | L146: 16.67372181 | M146: 0.06697239126 | N146: 0.1838133838 | O146: 3.277676673 | P146: 1.570497188 | Q146: 1.17109747 | R146: 40.71248181 | S146: 30.57507384 | T146: 29.51654931 | U146: 14.33625315
A147: 2005 | B147: 2004-05-24 | C147: 145 | D147: 16 | E147: 31.8 | F147: 24 | G147: 100 | H147: 5.22 | I147: 13.6422864 | K147: 5.918507826 | L147: 16.55933415 | M147: 0.06697239126 | N147: 0.1780862084 | O147: 3.259261459 | P147: 1.47271712 | Q147: 1.084529059 | R147: 40.79852375 | S147: 30.63969134 | T147: 29.57892972 | U147: 14.36030147
A148: 2005 | B148: 2004-05-25 | C148: 146 | D148: 16 | E148: 33 | F148: 24 | G148: 100 | H148: 6.42875 | I148: 13.66448408 | K148: 6.276073625 | L148: 16.63462025 | M148: 0.06697239126 | N148: 0.1838133838 | O148: 3.423800697 | P148: 1.512206537 | Q148: 1.335664021 | R148: 40.88146115 | S148: 30.70197732 | T148: 29.63905933 | U148: 14.38366745
A149: 2005 | B149: 2004-05-26 | C149: 147 | D149: 16.5 | E149: 32.5 | F149: 24 | G149: 100 | H149: 5.912083333 | I149: 13.68601951 | K149: 6.154716577 | L149: 16.70921384 | M149: 0.06697239126 | N149: 0.1838133838 | O149: 3.383507376 | P149: 1.524910709 | Q149: 1.22831919 | R149: 40.96128785 | S149: 30.76192718 | T149: 29.69693369 | U149: 14.40633633
A150: 2005 | B150: 2004-05-27 | C150: 148 | D150: 14.5 | E150: 30 | F150: 24 | G150: 100 | H150: 5.387916667 | I150: 13.70687885 | K150: 5.748118412 | L150: 16.53805889 | M150: 0.06697239126 | N150: 0.1631251948 | O150: 2.946471592 | P150: 1.334178044 | Q150: 1.119416129 | R150: 41.03799811 | S150: 30.81953658 | T150: 29.75254863 | U150: 14.42829352
A151: 2005 | B151: 2004-05-28 | C151: 149 | D151: 14.5 | E151: 20.8 | F151: 24 | G151: 100 | H151: 6.0675 | I151: 13.72704842 | K151: 4.943385186 | L151: 16.53344448 | M151: 0.06697239126 | N151: 0.1270844551 | O151: 2.05276444 | P151: 1.119688327 | Q151: 1.260609208 | R151: 41.11158654 | S151: 30.87480149 | T151: 29.80590024 | U151: 14.44952466
A152: 2005 | B152: 2004-05-29 | C152: 150 | D152: 16.7 | E152: 21.5 | F152: 24 | G152: 100 | H152: 5.29 | I152: 13.74651481 | K152: 5.05725356 | L152: 16.74791783 | M152: 0.06697239126 | N152: 0.1375934213 | O152: 2.23164311 | P152: 1.257589667 | Q152: 1.099072552 | R152: 41.18204813 | S152: 30.92771814 | T152: 29.85698489 | U152: 14.47001559
A153: 2005 | B153: 2004-05-30 | C153: 151 | D153: 14 | E153: 22.6 | F153: 24 | G153: 100 | H153: 5.061666667 | I153: 13.76526485 | K153: 5.016888889 | L153: 16.56670213 | M153: 0.06697239126 | N153: 0.131702987 | O153: 2.169296736 | P153: 1.127669982 | Q153: 1.051633063 | R153: 41.24937823 | S153: 30.97828305 | T153: 29.90579921 | U153: 14.48975247
A154: 2005 | B154: 2004-05-31 | C154: 152 | D154: 14 | E154: 23 | F154: 24 | G154: 100 | H154: 5.9275 | I154: 13.78328564 | K154: 5.143967811 | L154: 16.60198612 | M154: 0.06697239126 | N154: 0.1331540488 | O154: 2.202938976 | P154: 1.135744119 | Q154: 1.231522222 | R154: 41.31357255 | S154: 31.02649299 | T154: 29.9523401 | U154: 14.50872172
A155: 2005 | B155: 2004-06-01 | C155: 153 | D155: 14 | E155: 23 | F155: 24 | G155: 100 | H155: 6.750833333 | I155: 13.80056462 | K155: 5.228267473 | L155: 16.63606985 | M155: 0.06697239126 | N155: 0.1331540488 | O155: 2.202938976 | P155: 1.135744119 | Q155: 1.402581403 | R155: 41.37462717 | S155: 31.072345 | T155: 29.9966047 | U155: 14.52691012
A156: 2005 | B156: 2004-06-02 | C156: 154 | D156: 14 | E156: 22.3 | F156: 24 | G156: 100 | H156: 6.13375 | I156: 13.81708957 | K156: 5.111061988 | L156: 16.66958991 | M156: 0.06697239126 | N156: 0.1306240062 | O156: 2.144529207 | P156: 1.121725775 | Q156: 1.274373585 | R156: 41.4325385 | S156: 31.11583641 | T156: 30.03859041 | U156: 14.54430481
A157: 2005 | B157: 2004-06-03 | C157: 155 | D157: 14 | E157: 22.3 | F157: 24 | G157: 100 | H157: 6.13375 | I157: 13.83284865 | K157: 5.118251932 | L157: 16.70016236 | M157: 0.06697239126 | N157: 0.1306240062 | O157: 2.144529207 | P157: 1.121725775 | Q157: 1.274373585 | R157: 41.48730331 | S157: 31.15696479 | T157: 30.0782949 | U157: 14.56089332
A158: 2005 | B158: 2004-06-04 | C158: 156 | D158: 14 | E158: 22.3 | F158: 24 | G158: 100 | H158: 6.13375 | I158: 13.84783044 | K158: 5.125028398 | L158: 16.72897667 | M158: 0.06697239126 | N158: 0.1306240062 | O158: 2.144529207 | P158: 1.121725775 | Q158: 1.274373585 | R158: 41.53891873 | S158: 31.19572796 | T158: 30.11571608 | U158: 14.57666362
A159: 2005 | B159: 2004-06-05 | C159: 157 | D159: 14 | E159: 22.3 | F159: 24 | G159: 100 | H159: 6.13375 | I159: 13.86202393 | K159: 5.131391056 | L159: 16.75603141 | M159: 0.06697239126 | N159: 0.1306240062 | O159: 2.144529207 | P159: 1.121725775 | Q159: 1.274373585 | R159: 41.58738221 | S159: 31.23212404 | T159: 30.1508521 | U159: 14.59160414
A160: 2005 | B160: 2004-06-06 | C160: 158 | D160: 14 | E160: 22.3 | F160: 24 | G160: 100 | H160: 6.13375 | I160: 13.87541862 | K160: 5.137339617 | L160: 16.78132537 | M160: 0.06697239126 | N160: 0.1306240062 | O160: 2.144529207 | P160: 1.121725775 | Q160: 1.274373585 | R160: 41.63269159 | S160: 31.26615138 | T160: 30.1837014 | U160: 14.60570381
A161: 2005 | B161: 2004-06-07 | C161: 159 | D161: 14 | E161: 22.3 | F161: 24 | G161: 100 | H161: 6.13375 | I161: 13.88800445 | K161: 5.142873841 | L161: 16.80485752 | M161: 0.06697239126 | N161: 0.1306240062 | O161: 2.144529207 | P161: 1.121725775 | Q161: 1.274373585 | R161: 41.67484501 | S161: 31.2978086 | T161: 30.21426263 | U161: 14.61895206
A162: 2005 | B162: 2004-06-08 | C162: 160 | D162: 14 | E162: 22.3 | F162: 24 | G162: 100 | H162: 6.13375 | I162: 13.89977194 | K162: 5.147993531 | L162: 16.82662702 | M162: 0.06697239126 | N162: 0.1306240062 | O162: 2.144529207 | P162: 1.121725775 | Q162: 1.274373585 | R162: 41.71384098 | S162: 31.32709458 | T162: 30.24253471 | U162: 14.63133889
A163: 2005 | B163: 2004-06-09 | C163: 161 | D163: 14 | E163: 22.3 | F163: 24 | G163: 100 | H163: 6.13375 | I163: 13.91071213 | K163: 5.152698536 | L163: 16.84663324 | M163: 0.06697239126 | N163: 0.1306240062 | O163: 2.144529207 | P163: 1.121725775 | Q163: 1.274373585 | R163: 41.74967836 | S163: 31.35400845 | T163: 30.26851681 | U163: 14.64285487
A164: 2005 | B164: 2004-06-10 | C164: 162 | D164: 14 | E164: 22.3 | F164: 24 | G164: 100 | H164: 6.13375 | I164: 13.92081662 | K164: 5.156988754 | L164: 16.86487573 | M164: 0.06697239126 | N164: 0.1306240062 | O164: 2.144529207 | P164: 1.121725775 | Q164: 1.274373585 | R164: 41.78235636 | S164: 31.37854963 | T164: 30.29220836 | U164: 14.65349118
A165: 2005 | B165: 2004-06-11 | C165: 163 | D165: 14 | E165: 22.3 | F165: 24 | G165: 100 | H165: 6.13375 | I165: 13.93007765 | K165: 5.160864124 | L165: 16.88135424 | M165: 0.06697239126 | N165: 0.1306240062 | O165: 2.144529207 | P165: 1.121725775 | Q165: 1.274373585 | R165: 41.81187452 | S165: 31.40071776 | T165: 30.31360903 | U165: 14.66323963
A166: 2005 | B166: 2004-06-12 | C166: 164 | D166: 14 | E166: 22.3 | F166: 24 | G166: 100 | H166: 6.13375 | I166: 13.93848805 | K166: 5.164324633 | L166: 16.89606872 | M166: 0.06697239126 | N166: 0.1306240062 | O166: 2.144529207 | P166: 1.121725775 | Q166: 1.274373585 | R166: 41.83823274 | S166: 31.42051279 | T166: 30.33271874 | U166: 14.67209268
A167: 2005 | B167: 2004-06-13 | C167: 165 | D167: 14 | E167: 22.3 | F167: 24 | G167: 100 | H167: 6.13375 | I167: 13.9460413 | K167: 5.167370314 | L167: 16.9090193 | M167: 0.06697239126 | N167: 0.1306240062 | O167: 2.144529207 | P167: 1.121725775 | Q167: 1.274373585 | R167: 41.86143127 | S167: 31.43793489 | T167: 30.34953767 | U167: 14.68004347
A168: 2005 | B168: 2004-06-14 | C168: 166 | D168: 14 | E168: 22.3 | F168: 24 | G168: 100 | H168: 6.13375 | I168: 13.95273154 | K168: 5.170001245 | L168: 16.92020632 | M168: 0.06697239126 | N168: 0.1306240062 | O168: 2.144529207 | P168: 1.121725775 | Q168: 1.274373585 | R168: 41.88147072 | S168: 31.45298451 | T168: 30.36406627 | U168: 14.68708583
A169: 2005 | B169: 2004-06-15 | C169: 167 | D169: 14 | E169: 22.3 | F169: 24 | G169: 100 | H169: 6.13375 | I169: 13.95855359 | K169: 5.172217552 | L169: 16.92963031 | M169: 0.06697239126 | N169: 0.1306240062 | O169: 2.144529207 | P169: 1.121725775 | Q169: 1.274373585 | R169: 41.89835202 | S169: 31.46566237 | T169: 30.37630522 | U169: 14.69321431
A170: 2005 | B170: 2004-06-16 | C170: 168 | D170: 14 | E170: 22.3 | F170: 24 | G170: 100 | H170: 6.13375 | I170: 13.96350298 | K170: 5.174019405 | L170: 16.93729199 | M170: 0.06697239126 | N170: 0.1306240062 | O170: 2.144529207 | P170: 1.121725775 | Q170: 1.274373585 | R170: 41.91207649 | S170: 31.47596944 | T170: 30.38625545 | U170: 14.69842419
A171: 2005 | B171: 2004-06-17 | C171: 169 | D171: 14 | E171: 22.3 | F171: 24 | G171: 100 | H171: 6.13375 | I171: 13.96757592 | K171: 5.17540702 | L171: 16.94319229 | M171: 0.06697239126 | N171: 0.1306240062 | O171: 2.144529207 | P171: 1.121725775 | Q171: 1.274373585 | R171: 41.92264576 | S171: 31.48390697 | T171: 30.39391818 | U171: 14.7027115
A172: 2005 | B172: 2004-06-18 | C172: 170 | D172: 14 | E172: 22.3 | F172: 24 | G172: 100 | H172: 6.13375 | I172: 13.97076936 | K172: 5.176380659 | L172: 16.94733231 | M172: 0.06697239126 | N172: 0.1306240062 | O172: 2.144529207 | P172: 1.121725775 | Q172: 1.274373585 | R172: 41.93006184 | S172: 31.48947644 | T172: 30.39929483 | U172: 14.70607301
A173: 2005 | B173: 2004-06-19 | C173: 171 | D173: 14 | E173: 22.3 | F173: 24 | G173: 100 | H173: 6.13375 | I173: 13.97308097 | K173: 5.176940632 | L173: 16.94971338 | M173: 0.06697239126 | N173: 0.1306240062 | O173: 2.144529207 | P173: 1.121725775 | Q173: 1.274373585 | R173: 41.93432707 | S173: 31.49267963 | T173: 30.40238713 | U173: 14.70850629
A174: 2005 | B174: 2004-06-20 | C174: 172 | D174: 14 | E174: 22.3 | F174: 24 | G174: 100 | H174: 6.13375 | I174: 13.97450916 | K174: 5.17708729 | L174: 16.95033699 | M174: 0.06697239126 | N174: 0.1306240062 | O174: 2.144529207 | P174: 1.121725775 | Q174: 1.274373585 | R174: 41.93544415 | S174: 31.49351855 | T174: 30.40319701 | U174: 14.71000964
A175: 2005 | B175: 2004-06-21 | C175: 173 | D175: 14 | E175: 22.3 | F175: 24 | G175: 100 | H175: 6.13375 | I175: 13.97505307 | K175: 5.176821033 | L175: 16.94920483 | M175: 0.06697239126 | N175: 0.1306240062 | O175: 2.144529207 | P175: 1.121725775 | Q175: 1.274373585 | R175: 41.9334161 | S175: 31.49199549 | T175: 30.40172668 | U175: 14.71058218
A176: 2005 | B176: 2004-06-22 | C176: 174 | D176: 14 | E176: 22.3 | F176: 24 | G176: 100 | H176: 6.13375 | I176: 13.97471261 | K176: 5.176142305 | L176: 16.9463188 | M176: 0.06697239126 | N176: 0.1306240062 | O176: 2.144529207 | P176: 1.121725775 | Q176: 1.274373585 | R176: 41.92824632 | S176: 31.48811299 | T176: 30.39797858 | U176: 14.7102238
A177: 2005 | B177: 2004-06-23 | C177: 175 | D177: 14 | E177: 22.3 | F177: 24 | G177: 100 | H177: 6.13375 | I177: 13.97348839 | K177: 5.175051593 | L177: 16.94168097 | M177: 0.06697239126 | N177: 0.1306240062 | O177: 2.144529207 | P177: 1.121725775 | Q177: 1.274373585 | R177: 41.91993852 | S177: 31.48187383 | T177: 30.39195543 | U177: 14.70893515
A178: 2005 | B178: 2004-06-24 | C178: 176 | D178: 14 | E178: 22.3 | F178: 24 | G178: 100 | H178: 6.13375 | I178: 13.97138181 | K178: 5.17354943 | L178: 16.9352936 | M178: 0.06697239126 | N178: 0.1306240062 | O178: 2.144529207 | P178: 1.121725775 | Q178: 1.274373585 | R178: 41.90849675 | S178: 31.47328106 | T178: 30.38366014 | U178: 14.70671769
A179: 2005 | B179: 2004-06-25 | C179: 177 | D179: 14 | E179: 22.3 | F179: 24 | G179: 100 | H179: 6.13375 | I179: 13.96839497 | K179: 5.171636391 | L179: 16.92715914 | M179: 0.06697239126 | N179: 0.1306240062 | O179: 2.144529207 | P179: 1.121725775 | Q179: 1.274373585 | R179: 41.8939254 | S179: 31.46233797 | T179: 30.37309591 | U179: 14.70357365
A180: 2005 | B180: 2004-06-26 | C180: 178 | D180: 14 | E180: 22.3 | F180: 24 | G180: 100 | H180: 6.13375 | I180: 13.96453071 | K180: 5.169313095 | L180: 16.91728023 | M180: 0.06697239126 | N180: 0.1306240062 | O180: 2.144529207 | P180: 1.121725775 | Q180: 1.274373585 | R180: 41.87622917 | S180: 31.44904811 | T180: 30.36026615 | U180: 14.69950601
A181: 2005 | B181: 2004-06-27 | C181: 179 | D181: 14 | E181: 22.3 | F181: 24 | G181: 100 | H181: 6.13375 | I181: 13.95979262 | K181: 5.166580204 | L181: 16.90565966 | M181: 0.06697239126 | N181: 0.1306240062 | O181: 2.144529207 | P181: 1.121725775 | Q181: 1.274373585 | R181: 41.85541312 | S181: 31.43341525 | T181: 30.34517451 | U181: 14.69451854
A182: 2005 | B182: 2004-06-28 | C182: 180 | D182: 14 | E182: 22.3 | F182: 24 | G182: 100 | H182: 6.13375 | I182: 13.95418495 | K182: 5.16343842 | L182: 16.89230044 | M182: 0.06697239126 | N182: 0.1306240062 | O182: 2.144529207 | P182: 1.121725775 | Q182: 1.274373585 | R182: 41.83148258 | S182: 31.41544341 | T182: 30.32782487 | U182: 14.68861573
A183: 2005 | B183: 2004-06-29 | C183: 181 | D183: 14 | E183: 22.3 | F183: 24 | G183: 100 | H183: 6.13375 | I183: 13.94771268 | K183: 5.159888486 | L183: 16.87720572 | M183: 0.06697239126 | N183: 0.1306240062 | O183: 2.144529207 | P183: 1.121725775 | Q183: 1.274373585 | R183: 41.80444322 | S183: 31.39513686 | T183: 30.30822133 | U183: 14.68180282
A184: 2005 | B184: 2004-06-30 | C184: 182 | D184: 14 | E184: 22.3 | F184: 24 | G184: 100 | H184: 6.13375 | I184: 13.94038147 | K184: 5.155931186 | L184: 16.86037883 | M184: 0.06697239126 | N184: 0.1306240062 | O184: 2.144529207 | P184: 1.121725775 | Q184: 1.274373585 | R184: 41.77430101 | S184: 31.37250006 | T184: 30.28636823 | U184: 14.67408576
A185: 2005 | B185: 2004-07-01 | C185: 183 | D185: 14 | E185: 22.3 | F185: 24 | G185: 100 | H185: 6.13375 | I185: 13.93219764 | K185: 5.151567345 | L185: 16.84182328 | M185: 0.06697239126 | N185: 0.1306240062 | O185: 2.144529207 | P185: 1.121725775 | Q185: 1.274373585 | R185: 41.74106223 | S185: 31.34753774 | T185: 30.26227012 | U185: 14.6654712
A186: 2005 | B186: 2004-07-02 | C186: 184 | D186: 14 | E186: 22.3 | F186: 24 | G186: 100 | H186: 6.13375 | I186: 13.92316816 | K186: 5.146797822 | L186: 16.82154273 | M186: 0.06697239126 | N186: 0.1306240062 | O186: 2.144529207 | P186: 1.121725775 | Q186: 1.274373585 | R186: 41.70473343 | S186: 31.32025481 | T186: 30.23593174 | U186: 14.65596649
A187: 2005 | B187: 2004-07-03 | C187: 185 | D187: 14 | E187: 22.3 | F187: 24 | G187: 100 | H187: 6.13375 | I187: 13.91330062 | K187: 5.141623518 | L187: 16.799541 | M187: 0.06697239126 | N187: 0.1306240062 | O187: 2.144529207 | P187: 1.121725775 | Q187: 1.274373585 | R187: 41.66532147 | S187: 31.29065642 | T187: 30.20735807 | U187: 14.6455796
A188: 2005 | B188: 2004-07-04 | C188: 186 | D188: 14 | E188: 22.3 | F188: 24 | G188: 100 | H188: 6.13375 | I188: 13.90260322 | K188: 5.136045369 | L188: 16.77582208 | M188: 0.06697239126 | N188: 0.1306240062 | O188: 2.144529207 | P188: 1.121725775 | Q188: 1.274373585 | R188: 41.62283348 | S188: 31.25874794 | T188: 30.17655427 | U188: 14.63431918
A189: 2005 | B189: 2004-07-05 | C189: 187 | D189: 14 | E189: 22.3 | F189: 24 | G189: 100 | H189: 6.13375 | I189: 13.89108473 | K189: 5.130064347 | L189: 16.75039009 | M189: 0.06697239126 | N189: 0.1306240062 | O189: 2.144529207 | P189: 1.121725775 | Q189: 1.274373585 | R189: 41.57727685 | S189: 31.22453492 | T189: 30.14352572 | U189: 14.62219445
A190: 2005 | B190: 2004-07-06 | C190: 188 | D190: 14 | E190: 22.3 | F190: 24 | G190: 100 | H190: 6.13375 | I190: 13.87875448 | K190: 5.123681459 | L190: 16.72324933 | M190: 0.06697239126 | N190: 0.1306240062 | O190: 2.144529207 | P190: 1.121725775 | Q190: 1.274373585 | R190: 41.52865927 | S190: 31.18802311 | T190: 30.10827797 | U190: 14.60921524
A191: 2005 | B191: 2004-07-07 | C191: 189 | D191: 14 | E191: 22.3 | F191: 24 | G191: 100 | H191: 6.13375 | I191: 13.86562234 | K191: 5.116897747 | L191: 16.69440421 | M191: 0.06697239126 | N191: 0.1306240062 | O191: 2.144529207 | P191: 1.121725775 | Q191: 1.274373585 | R191: 41.47698867 | S191: 31.14921849 | T191: 30.07081678 | U191: 14.59539193
A192: 2005 | B192: 2004-07-08 | C192: 190 | D192: 14 | E192: 22.3 | F192: 24 | G192: 100 | H192: 6.13375 | I192: 13.85169866 | K192: 5.109714285 | L192: 16.66385932 | M192: 0.06697239126 | N192: 0.1306240062 | O192: 2.144529207 | P192: 1.121725775 | Q192: 1.274373585 | R192: 41.42227323 | S192: 31.1081272 | T192: 30.03114809 | U192: 14.58073543
A193: 2005 | B193: 2004-07-09 | C193: 191 | D193: 14 | E193: 22.3 | F193: 24 | G193: 100 | H193: 6.13375 | I193: 13.83699429 | K193: 5.102132183 | L193: 16.63161936 | M193: 0.06697239126 | N193: 0.1306240062 | O193: 2.144529207 | P193: 1.121725775 | Q193: 1.274373585 | R193: 41.3645214 | S193: 31.06475557 | T193: 29.98927801 | U193: 14.56525715
A194: 2005 | B194: 2004-07-10 | C194: 192 | D194: 14 | E194: 22.3 | F194: 24 | G194: 100 | H194: 6.13375 | I194: 13.8215205 | K194: 5.094152579 | L194: 16.59768918 | M194: 0.06697239126 | N194: 0.1306240062 | O194: 2.144529207 | P194: 1.121725775 | Q194: 1.274373585 | R194: 41.30374185 | S194: 31.01911013 | T194: 29.94521284 | U194: 14.54896895
A195: 2005 | B195: 2004-07-11 | C195: 193 | D195: 14 | E195: 22.3 | F195: 24 | G195: 100 | H195: 6.13375 | I195: 13.80528899 | K195: 5.085776645 | L195: 16.56207376 | M195: 0.06697239126 | N195: 0.1306240062 | O195: 2.144529207 | P195: 1.121725775 | Q195: 1.274373585 | R195: 41.23994352 | S195: 30.97119758 | T195: 29.89895905 | U195: 14.53188314
A196: 2005 | B196: 2004-07-12 | C196: 194 | D196: 14 | E196: 22.3 | F196: 24 | G196: 100 | H196: 6.13375 | I196: 13.78831183 | K196: 5.077005585 | L196: 16.52477821 | M196: 0.06697239126 | N196: 0.1306240062 | O196: 2.144529207 | P196: 1.121725775 | Q196: 1.274373585 | R196: 41.17313555 | S196: 30.9210248 | T196: 29.85052328 | U196: 14.51401246
A197: 2005 | B197: 2004-07-13 | C197: 195 | D197: 14 | E197: 22.3 | F197: 24 | G197: 100 | H197: 6.13375 | I197: 13.77060147 | K197: 5.067840629 | L197: 16.48580778 | M197: 0.06697239126 | N197: 0.1306240062 | O197: 2.144529207 | P197: 1.121725775 | Q197: 1.274373585 | R197: 41.10332735 | S197: 30.86859884 | T197: 29.79991233 | U197: 14.49536997
A198: 2005 | B198: 2004-07-14 | C198: 196 | D198: 15 | E198: 30 | F198: 30 | G198: 90 | H198: 14.4 | I198: 13.75217067 | K198: 6.930749737 | L198: 16.6622948 | M198: 0.06697239126 | N198: 0.1653192187 | O198: 2.973526729 | P198: 1.403310729 | Q198: 2.991804301 | R198: 41.03052853 | S198: 30.81392692 | T198: 29.74713318 | U198: 14.47596913
A199: 2005 | B199: 2004-07-15 | C199: 197 | D199: 14 | E199: 22.3 | F199: 24 | G199: 100 | H199: 6.13375 | I199: 13.73303248 | K199: 5.048334117 | L199: 16.40286388 | M199: 0.06697239126 | N199: 0.1306240062 | O199: 2.144529207 | P199: 1.121725775 | Q199: 1.274373585 | R199: 40.95474893 | S199: 30.75701645 | T199: 29.69219297 | U199: 14.45582366
A200: 2005 | B200: 2004-07-16 | C200: 198 | D200: 14 | E200: 22.3 | F200: 24 | G200: 100 | H200: 6.13375 | I200: 13.71320021 | K200: 5.037995176 | L200: 16.35890153 | M200: 0.06697239126 | N200: 0.1306240062 | O200: 2.144529207 | P200: 1.121725775 | Q200: 1.274373585 | R200: 40.87599863 | S200: 30.69787497 | T200: 29.63509901 | U200: 14.43494759
... 12 more rows

Sheet Calculos (hidden)
A2: I - Time | E2: Convenções: | G2: Latitude & declination are positive in the Northern Hemisphere and negative in the southern
A3: t_i = integer part (t) | G3: LC is positive when easthern of the the standard meridian and vice versa
A4: t_d = decimal part (t) | G4: Longitude is positive east of Greenwich and hour angle is positive in the afternoon
A6: Ex: | E6: Conversions of itme: | H6: True Solar Time (Tt) or Local Apparent Time is the time on a sun-dial set at 12 when the sun 'crosses the meridian'; Tt=Tu-L/15+ET(in minutes)/60
A7: t = | B7: 16.24 | H7: Local mean time (Tlm) is the value of the Tt after subtraction of the ET correction; Tlm = [Tls-L-Lo)/15]
A8: t_i = | B8: 16 | H8: Local Standard Time (Tls)=Tu-Lo/15, where Lo is the longitude of the standard meridian defining the standard time zone
A9: t_d = | B9: 0.24
A10: This is the t_i +1 = 17 th day
A12: Julian day (1 March = 1)
A13: Day of the Year (1 Jan = 1)
A16: Year angle y is given by | F16: or
A19: F3(declinação)= | C19: (0.38092-0.76996*COS(D25)+23.265*SIN(D25)+0.36958*COS(2*D25)+0.10868*SIN(2*D25)+0.01834*COS(3*D25)-0.1665*SIN(3*D25)-0.00392*COS(4*D25)+0.00072*SIN(4*D25)-0.00051*COS(5*D25)+0.0025*SIN(5*D25)+0.00442*COS(6*D25))*PI()/180
A20: F4(declinação)= | C20: ASIN(0.39785*SIN(4.869+0.0172*C25+0.03345*SIN(6.224+0.0172*C25)))
A22: Ex. | B22: (F1 e F2 dão resultados equivalentes, quando se utilizana F3)
A23: Dia | D23: F 1 | E23: F2 | F23: F3 | G23: F4
B24: Julian | C24: Year | D24: y(radians) | E24: y(radians) | F24: Declinacao | G24: Declinacao | H24: Y(rad) | I24: Declinacao
A25: 1993-01-01 | B25: =1+307 -> 308 | C25: 1 | D25: =(B25-21)/365*2*PI() -> 4.940477214 | E25: =(279.575+0.986*C25)*PI()/180 -> 4.896713203 | F25: =(0.38092-0.76996*COS(D25)+23.265*SIN(D25)+0.36958*COS(2*D25)+0.10868*SIN(2*D25)+0.01834*COS(3*D25)-0.1665*SIN(3*D25)-0.00392*COS(4*D25)+0.00072*SIN(4*D25)-0.00051*COS(5*D25)+0.0025*SIN(5*D25)+0.00442*COS(6*D25))*PI()/180 -> -0.4010788474 | G25: =ASIN(0.39785*SIN(4.869+0.0172*C25+0.03345*SIN(6.224+0.0172*C25))) -> -0.4027521354 | H25: =(C25 - 1) * 2 * PI() / 365 -> 0 | I25: =(0.006918 - 0.399912 * COS(H25) + 0.070257 * SIN(H25) - 0.006758 * COS(2 * H25) + 0.000907 * SIN(2 * H25) - 0.002697 * COS(3 * H25) + 0.00148 * SIN(3 * H25)) -> -0.402449 | J25: =F25*180/PI() -> -22.98012521 | K25: =G25*180/PI() -> -23.07599755 | L25: =I25*180/PI() -> -23.05862917
A26: 1993-01-20 | B26: =B25+(A26-A25) -> 327 | C26: =C25+(A26-A25) -> 20 | D26: =(B26-21)/365*2*PI() -> 5.267547134 | E26: =(279.575+0.986*C26)*PI()/180 -> 5.223683185 | F26: =(0.38092-0.76996*COS(D26)+23.265*SIN(D26)+0.36958*COS(2*D26)+0.10868*SIN(2*D26)+0.01834*COS(3*D26)-0.1665*SIN(3*D26)-0.00392*COS(4*D26)+0.00072*SIN(4*D26)-0.00051*COS(5*D26)+0.0025*SIN(5*D26)+0.00442*COS(6*D26))*PI()/180 -> -0.3499485637 | G26: =ASIN(0.39785*SIN(4.869+0.0172*C26+0.03345*SIN(6.224+0.0172*C26))) -> -0.3546045027 | H26: =(C26 - 1) * 2 * PI() / 365 -> 0.3270699201 | I26: =(0.006918 - 0.399912 * COS(H26) + 0.070257 * SIN(H26) - 0.006758 * COS(2 * H26) + 0.000907 * SIN(2 * H26) - 0.002697 * COS(3 * H26) + 0.00148 * SIN(3 * H26)) -> -0.3543028386 | J26: =F26*180/PI() -> -20.05057575 | K26: -20.3173414 | L26: =I26*180/PI() -> -20.30005732
A27: 1993-06-19 | B27: =A27-A25-59 -> 110 | C27: =C26+(A27-A26) -> 170 | D27: =(B27-21)/365*2*PI() -> 1.532064363 | E27: =(279.575+0.986*C27)*PI()/180 -> 7.805025148 | F27: =(0.38092-0.76996*COS(D27)+23.265*SIN(D27)+0.36958*COS(2*D27)+0.10868*SIN(2*D27)+0.01834*COS(3*D27)-0.1665*SIN(3*D27)-0.00392*COS(4*D27)+0.00072*SIN(4*D27)-0.00051*COS(5*D27)+0.0025*SIN(5*D27)+0.00442*COS(6*D27))*PI()/180 -> 0.4083357724 | G27: =ASIN(0.39785*SIN(4.869+0.0172*C27+0.03345*SIN(6.224+0.0172*C27))) -> 0.4085896902 | H27: =(C27 - 1) * 2 * PI() / 365 -> 2.909200868 | I27: =(0.006918 - 0.399912 * COS(H27) + 0.070257 * SIN(H27) - 0.006758 * COS(2 * H27) + 0.000907 * SIN(2 * H27) - 0.002697 * COS(3 * H27) + 0.00148 * SIN(3 * H27)) -> 0.4088305599 | J27: 23.39591638 | K27: 23.4104648 | L27: =I27*180/PI() -> 23.42426562
A28: 1993-12-16 | B28: =A28-A27+B27+1 -> 291 | C28: =C27+(A28-A27) -> 350 | D28: =(B28-21)/365*2*PI() -> 4.647835707 | E28: =(279.575+0.986*C28)*PI()/180 -> 10.9026355 | F28: =(0.38092-0.76996*COS(D28)+23.265*SIN(D28)+0.36958*COS(2*D28)+0.10868*SIN(2*D28)+0.01834*COS(3*D28)-0.1665*SIN(3*D28)-0.00392*COS(4*D28)+0.00072*SIN(4*D28)-0.00051*COS(5*D28)+0.0025*SIN(5*D28)+0.00442*COS(6*D28))*PI()/180 -> -0.4068117994 | G28: =ASIN(0.39785*SIN(4.869+0.0172*C28+0.03345*SIN(6.224+0.0172*C28))) -> -0.4062006941 | H28: =(C28 - 1) * 2 * PI() / 365 -> 6.007758006 | I28: =(0.006918 - 0.399912 * COS(H28) + 0.070257 * SIN(H28) - 0.006758 * COS(2 * H28) + 0.000907 * SIN(2 * H28) - 0.002697 * COS(3 * H28) + 0.00148 * SIN(3 * H28)) -> -0.4061769342 | J28: -23.30859916 | K28: -23.27358541 | L28: =I28*180/PI() -> -23.27222406
A30: conclusão: preferir f2 e f4 (mais simples e rigor semelhante)
A32: The zenith angle is
A39: t_o = | B39: 12-LC -ET | C39: wehre LC is the longitude correction and ET is the equation of time
A41: LC is +4 min or +1/15hour correction for each degree you are east of the standard meridian and -1/15 hour for each degree you are west of the standard meridian.
B42: Standard meridians are at 0, 15, 30,..345 degrees
A44: Ex. (tapada lat. = 38 degrees and42 ' and long. 9 degrees and 11' ).
A45: LC = | B45: =-1/15*(9+11/60) -> -0.6122222222 | C45: hour
A49: wherey is given by F2
A51: Ex.
A53: 1993-01-01 | B53: Year nº | C53: F2 (=y) | D53: ET(hour) | E53: Y(rad) | F53: ET(h)
A54: 1993-01-20 | B54: 20 | C54: =(279.575+0.986*B54)*PI()/180 -> 5.223683185 | D54: =(-104.7*SIN(C54)+596.2*SIN(2*C54)+4.3*SIN(3*C54)-12.7*SIN(4*C54)-429.3*COS(C54)-2*COS(2*C54)+19.3*COS(3*C54))/3600 -> -0.1824903639 | E54: =(B54 - 1) * 2 * PI() / 365 -> 0.3270699201 | F54: =(0.000075 + 0.001868 * COS(E54) - 0.032077 * SIN(E54) - 0.014615 * COS(2 * E54) - 0.04089 * SIN(2 * E54)) * (3.8197) -> -0.1716575552
A55: 1993-06-19 | B55: =A55-$A$53+1 -> 170 | C55: =(279.575+0.986*B55)*PI()/180 -> 7.805025148 | D55: =(-104.7*SIN(C55)+596.2*SIN(2*C55)+4.3*SIN(3*C55)-12.7*SIN(4*C55)-429.3*COS(C55)-2*COS(2*C55)+19.3*COS(3*C55))/3600 -> -0.01942146073 | E55: =(B55 - 1) * 2 * PI() / 365 -> 2.909200868 | F55: =(0.000075 + 0.001868 * COS(E55) - 0.032077 * SIN(E55) - 0.014615 * COS(2 * E55) - 0.04089 * SIN(2 * E55)) * (3.8197) -> -0.01477010206
A56: 1993-12-16 | B56: =A56-$A$53+1 -> 350 | C56: =(279.575+0.986*B56)*PI()/180 -> 10.9026355 | D56: =(-104.7*SIN(C56)+596.2*SIN(2*C56)+4.3*SIN(3*C56)-12.7*SIN(4*C56)-429.3*COS(C56)-2*COS(2*C56)+19.3*COS(3*C56))/3600 -> 0.07508249912 | E56: =(B56 - 1) * 2 * PI() / 365 -> 6.007758006 | F56: =(0.000075 + 0.001868 * COS(E56) - 0.032077 * SIN(E56) - 0.014615 * COS(2 * E56) - 0.04089 * SIN(2 * E56)) * (3.8197) -> 0.07465812355
B58: For Tapada and days above
A59: t_o= | B59: =12-$B$45-D54 -> 12.79471259
B60: =12-$B$45-D55 -> 12.63164368
B61: =12-$B$45-D56 -> 12.53713972
A64: Day length can be found by F5, i. e.:
A65: Lat. rad= | B65: =(38+42/60)*PI()/180 -> 0.6754424205
H66: (rad) | I66: (hours)
A67: 1993-01-01 | B67: Year nº | C67: F2 (=y) | D67: ET(hour) | E67: LC(hour) | F67: t_0 | G67: Declinação | H67: Half day lenght | J67: time of sunrise
A68: 1993-01-20 | B68: =A68-$A$53+1 -> 20 | C68: =(279.575+0.986*B68)*PI()/180 -> 5.223683185 | D68: =(-104.7*SIN(C68)+596.2*SIN(2*C68)+4.3*SIN(3*C68)-12.7*SIN(4*C68)-429.3*COS(C68)-2*COS(2*C68)+19.3*COS(3*C68))/3600 -> -0.1824903639 | E68: =-1/15*(9+11/60) -> -0.6122222222 | F68: =12-E68-D68 -> 12.79471259 | G68: =ASIN(0.39785*SIN(4.869+0.0172*B68+0.03345*SIN(6.224+0.0172*B68))) -> -0.3546045027 | H68: =ACOS((-0.1-SIN($B$65)*SIN(G68))/(COS($B$65)*COS(G68))) -> 1.41011061 | I68: =H68*24/(2*PI()) -> 5.386225774 | J68: =F68-I68 -> 7.408486812 | M68: In the example, latitude is [38 º 43' N = (38+43/60)*PI()/180 radians] and longitude correction (LC) is 1/5*(-9) hours, since longitude is 9º west
A69: 1993-06-19 | B69: =A69-$A$53+1 -> 170 | C69: =(279.575+0.986*B69)*PI()/180 -> 7.805025148 | D69: =(-104.7*SIN(C69)+596.2*SIN(2*C69)+4.3*SIN(3*C69)-12.7*SIN(4*C69)-429.3*COS(C69)-2*COS(2*C69)+19.3*COS(3*C69))/3600 -> -0.01942146073 | E69: =-1/15*(9+11/60) -> -0.6122222222 | F69: =12-E69-D69 -> 12.63164368 | G69: =ASIN(0.39785*SIN(4.869+0.0172*B69+0.03345*SIN(6.224+0.0172*B69))) -> 0.4085896902 | H69: =ACOS((-0.1-SIN($B$65)*SIN(G69))/(COS($B$65)*COS(G69))) -> 2.078865371 | I69: =H69*24/(2*PI()) -> 7.940680795 | J69: =F69-I69 -> 4.690962888
A70: 1993-12-16 | B70: =A70-$A$53+1 -> 350 | C70: =(279.575+0.986*B70)*PI()/180 -> 10.9026355 | D70: =(-104.7*SIN(C70)+596.2*SIN(2*C70)+4.3*SIN(3*C70)-12.7*SIN(4*C70)-429.3*COS(C70)-2*COS(2*C70)+19.3*COS(3*C70))/3600 -> 0.07508249912 | E70: =-1/15*(9+11/60) -> -0.6122222222 | F70: =12-E70-D70 -> 12.53713972 | G70: =ASIN(0.39785*SIN(4.869+0.0172*B70+0.03345*SIN(6.224+0.0172*B70))) -> -0.4062006941 | H70: =ACOS((-0.1-SIN($B$65)*SIN(G70))/(COS($B$65)*COS(G70))) -> 1.364222345 | I70: =H70*24/(2*PI()) -> 5.210945512 | J70: =F70-I70 -> 7.326194211
F71: =IF(UPPER(#REF!)="N",1,IF(UPPER(#REF!)="S",-1,"erro")) ->  | G71: =IF(UPPER(#REF!)="E",1,IF(UPPER(#REF!)="O",-1,"erro!")) ->  | H71: =IF(UPPER(#REF!)="E",1,IF(UPPER(#REF!)="O",-1,"erro!")) ->  | I71: =(#REF!+#REF!/60+#REF!/3600)*Calculos!G71 -> 
E72: Lat= | F72: =(#REF!+#REF!/60+#REF!/3600)*PI()/180*F71 ->  | G72: Civil Twi. | H72: Civil Twi. | I72: Civil Twi.
A73: 1992-01-01 | B73: 1 | C73: "="1 Jan 00h, 1992 | E73: LC= | F73: =1/15*(I71-#REF!*H71) ->  | G73: (rad) | H73: (hours) | I73: (hours) | J73: (hours) | K73: (rad) | L73: (hours) | M73: (hours) | N73: (hours) | O73: So (radiation on top of the atmos. on a horzontal surface in a day)
A74: Day | B74: Day | C74: y | D74: ET | E74: t_0 | F74: Declinação | G74: Half day lenght | I74: Time of first twilight | J74: Correction | K74: Half day lenght | M74: Time Sunrise | N74: Time Sunset | O74: MJ/m-2/day
A75: =A73 -> 1992-01-01 | B75: 1 | C75: =(279.575+0.986*B75)*PI()/180 -> 4.896713203 | D75: =(-104.7*SIN(C75)+596.2*SIN(2*C75)+4.3*SIN(3*C75)-12.7*SIN(4*C75)-429.3*COS(C75)-2*COS(2*C75)+19.3*COS(3*C75))/3600 -> -0.05659731214 | E75: =12-D75-$F$73 ->  | F75: =ASIN(0.39785*SIN(4.869+0.0172*B75+0.03345*SIN(6.224+0.0172*B75))) -> -0.4027521354 | G75: =ACOS((-0.1-SIN($F$72)*SIN(F75))/(COS($F$72)*COS(F75))) ->  | H75: =G75*24/(2*PI()) ->  | I75: =E75-H75 ->  | J75: =-(E75-12) ->  | K75: =ACOS((-SIN($F$72)*SIN(F75))/(COS($F$72)*COS(F75))) ->  | L75: =K75*24/(2*PI()) ->  | M75: =E75-L75 ->  | N75: =M75+2*L75 ->  | O75: =117.5*(K75*SIN($F$72)*SIN(F75)+COS($F$72)*COS(F75)*SIN(K75))/PI() -> 
A76: =A75+1 -> 1992-01-02 | B76: 2 | C76: 4.913922149 | D76: -0.06443458693 | F76: -0.4013666005 | I76: =E76-H76 ->  | K76: =ACOS((-SIN($F$72)*SIN(F76))/(COS($F$72)*COS(F76))) ->  | M76: =E76-L76 ->  | N76: =M76+2*L76 -> 
A77: 1992-01-03 | B77: 3 | C77: 4.931131096 | D77: -0.07217933402 | F77: -0.3998478528
A78: 1992-01-04 | B78: 4 | C78: 4.948340042 | D78: -0.07982329561 | F78: -0.3981966356
A79: 1992-01-05 | B79: 5 | C79: 4.965548988 | D79: -0.08735838864 | F79: -0.3964137581
A80: 1992-01-06 | B80: 6 | C80: 4.982757935 | D80: -0.09477671738 | F80: -0.3945000934
A81: 1992-01-07 | B81: 7 | C81: 4.999966881 | D81: -0.1020705854 | F81: -0.3924565774
A82: 1992-01-08 | B82: 8 | C82: 5.017175828 | D82: -0.1092325072 | F82: -0.3902842073
A83: 1992-01-09 | B83: 9 | C83: 5.034384774 | D83: -0.1162552191 | F83: -0.38798404
A84: 1992-01-10 | B84: 10 | C84: 5.051593721 | D84: -0.1231316899 | F84: -0.3855571907
A85: 1992-01-11 | B85: 11 | C85: 5.068802667 | D85: -0.1298551307 | F85: -0.3830048308
A86: 1992-01-12 | B86: 12 | C86: 5.086011613 | D86: -0.1364190039 | F86: -0.3803281864
A87: 1992-01-13 | B87: 13 | C87: 5.10322056 | D87: -0.1428170324 | F87: -0.3775285365
A88: 1992-01-14 | B88: 14 | C88: 5.120429506 | D88: -0.1490432073 | F88: -0.3746072111
A89: 1992-01-15 | B89: 15 | C89: 5.137638453 | D89: -0.1550917953 | F89: -0.3715655894
A90: 1992-01-16 | B90: 16 | C90: 5.154847399 | D90: -0.1609573457 | F90: -0.3684050977
A91: 1992-01-17 | B91: 17 | C91: 5.172056345 | D91: -0.1666346963 | F91: -0.3651272078
A92: 1992-01-18 | B92: 18 | C92: 5.189265292 | D92: -0.1721189787 | F92: -0.3617334345
A93: 1992-01-19 | B93: 19 | C93: 5.206474238 | D93: -0.1774056235 | F93: -0.3582253342
A94: 1992-01-20 | B94: 20 | C94: 5.223683185 | D94: -0.1824903639 | F94: -0.3546045027
A95: 1992-01-21 | B95: 21 | C95: 5.240892131 | D95: -0.1873692393 | F95: -0.350872573
A96: =A95+1 -> 1992-01-22 | B96: 22 | C96: 5.258101078 | D96: -0.1920385981 | F96: -0.3470312138
A97: 1992-01-23 | B97: 23 | C97: 5.275310024 | D97: -0.1964950997 | F97: -0.3430821271
A98: 1992-01-24 | B98: 24 | C98: 5.29251897 | D98: -0.2007357158 | F98: -0.3390270465
A99: 1992-01-25 | B99: 25 | C99: 5.309727917 | D99: -0.2047577311 | F99: -0.3348677352
A100: 1992-01-26 | B100: 26 | C100: 5.326936863 | D100: -0.2085587439 | F100: -0.3306059841
A101: 1992-01-27 | B101: 27 | C101: 5.34414581 | D101: -0.2121366646 | F101: -0.3262436101
A102: 1992-01-28 | B102: 28 | C102: 5.361354756 | D102: -0.2154897157 | F102: -0.3217824539
A103: 1992-01-29 | B103: 29 | C103: 5.378563703 | D103: -0.218616429 | F103: -0.3172243786
A104: 1992-01-30 | B104: 30 | C104: 5.395772649 | D104: -0.2215156441 | F104: -0.3125712678
A105: 1992-01-31 | B105: 31 | C105: 5.412981595 | D105: -0.2241865048 | F105: -0.3078250236
A106: 1992-02-01 | B106: 32 | C106: 5.430190542 | D106: -0.2266284562 | F106: -0.3029875654
A107: 1992-02-02 | B107: 33 | C107: 5.447399488 | D107: -0.2288412406 | F107: -0.2980608282
A108: 1992-02-03 | B108: 34 | C108: 5.464608435 | D108: -0.2308248928 | F108: -0.2930467607
A109: 1992-02-04 | B109: 35 | C109: 5.481817381 | D109: -0.2325797354 | F109: -0.287947324
A110: 1992-02-05 | B110: 36 | C110: 5.499026328 | D110: -0.2341063734 | F110: -0.2827644903
A111: 1992-02-06 | B111: 37 | C111: 5.516235274 | D111: -0.2354056883 | F111: -0.2775002412
A112: 1992-02-07 | B112: 38 | C112: 5.53344422 | D112: -0.2364788322 | F112: -0.2721565665
A113: 1992-02-08 | B113: 39 | C113: 5.550653167 | D113: -0.2373272208 | F113: -0.266735463
A114: 1992-02-09 | B114: 40 | C114: 5.567862113 | D114: -0.2379525269 | F114: -0.2612389331
A115: 1992-02-10 | B115: 41 | C115: 5.58507106 | D115: -0.2383566732 | F115: -0.2556689835
A116: =A115+1 -> 1992-02-11 | B116: 42 | C116: 5.602280006 | D116: -0.2385418246 | F116: -0.2500276246
A117: 1992-02-12 | B117: 43 | C117: 5.619488953 | D117: -0.2385103805 | F117: -0.2443168689
A118: 1992-02-13 | B118: 44 | C118: 5.636697899 | D118: -0.2382649673 | F118: -0.2385387301
A119: 1992-02-14 | B119: 45 | C119: 5.653906845 | D119: -0.2378084298 | F119: -0.2326952225
A120: 1992-02-15 | B120: 46 | C120: 5.671115792 | D120: -0.2371438232 | F120: -0.2267883596
A121: 1992-02-16 | B121: 47 | C121: 5.688324738 | D121: -0.2362744047 | F121: -0.2208201537
A122: 1992-02-17 | B122: 48 | C122: 5.705533685 | D122: -0.2352036249 | F122: -0.2147926148
A123: 1992-02-18 | B123: 49 | C123: 5.722742631 | D123: -0.2339351195 | F123: -0.2087077501
A124: 1992-02-19 | B124: 50 | C124: 5.739951577 | D124: -0.2324727003 | F124: -0.202567563
A125: 1992-02-20 | B125: 51 | C125: 5.757160524 | D125: -0.230820347 | F125: -0.196374053
A126: 1992-02-21 | B126: 52 | C126: 5.77436947 | D126: -0.2289821981 | F126: -0.1901292146
A127: 1992-02-22 | B127: 53 | C127: 5.791578417 | D127: -0.2269625431 | F127: -0.183835037
A128: 1992-02-23 | B128: 54 | C128: 5.808787363 | D128: -0.2247658131 | F128: -0.1774935036
A129: 1992-02-24 | B129: 55 | C129: 5.82599631 | D129: -0.2223965731 | F129: -0.1711065915
A130: 1992-02-25 | B130: 56 | C130: 5.843205256 | D130: -0.2198595131 | F130: -0.1646762712
A131: 1992-02-26 | B131: 57 | C131: 5.860414202 | D131: -0.2171594403 | F131: -0.1582045062
A132: 1992-02-27 | B132: 58 | C132: 5.877623149 | D132: -0.214301271 | F132: -0.1516932527
A133: 1992-02-28 | B133: 59 | C133: 5.894832095 | D133: -0.2112900223 | F133: -0.1451444592
A134: 1992-02-29 | B134: 60 | C134: 5.912041042 | D134: -0.2081308048 | F134: -0.1385600663
A135: 1992-03-01 | B135: 61 | C135: 5.929249988 | D135: -0.2048288148 | F135: -0.1319420069
A136: =A135+1 -> 1992-03-02 | B136: 62 | C136: 5.946458935 | D136: -0.2013893271 | F136: -0.1252922053
A137: 1992-03-03 | B137: 63 | C137: 5.963667881 | D137: -0.1978176876 | F137: -0.1186125776
A138: 1992-03-04 | B138: 64 | C138: 5.980876827 | D138: -0.1941193065 | F138: -0.1119050314
A139: 1992-03-05 | B139: 65 | C139: =(279.575+0.986*B139)*PI()/180 -> 5.998085774 | D139: =(-104.7*SIN(C139)+596.2*SIN(2*C139)+4.3*SIN(3*C139)-12.7*SIN(4*C139)-429.3*COS(C139)-2*COS(2*C139)+19.3*COS(3*C139))/3600 -> -0.190299652 | E139: =12-D139-$F$73 ->  | F139: =ASIN(0.39785*SIN(4.869+0.0172*B139+0.03345*SIN(6.224+0.0172*B139))) -> -0.1051714657 | G139: =ACOS((-0.1-SIN($F$72)*SIN(F139))/(COS($F$72)*COS(F139))) ->  | H139: =G139*24/(2*PI()) ->  | J139: =-(E139-12) ->  | L139: =K139*24/(2*PI()) ->  | O139: =117.5*(K139*SIN($F$72)*SIN(F139)+COS($F$72)*COS(F139)*SIN(K139))/PI() -> 
A140: 1992-03-06 | B140: 66 | C140: 6.01529472 | D140: -0.1863642429 | F140: -0.09841377115 | I140: =E140-H140 ->  | K140: =ACOS((-SIN($F$72)*SIN(F140))/(COS($F$72)*COS(F140))) ->  | M140: =E140-L140 ->  | N140: =M140+2*L140 -> 
A141: 1992-03-07 | B141: 67 | C141: 6.032503667 | D141: -0.1823186434 | F141: -0.09163382947
A142: 1992-03-08 | B142: 68 | C142: 6.049712613 | D142: -0.1781684562 | F142: -0.08483351387
A143: 1992-03-09 | B143: 69 | C143: 6.06692156 | D143: -0.1739193173 | F143: -0.07801468896
A144: 1992-03-10 | B144: 70 | C144: 6.084130506 | D144: -0.1695768904 | F144: -0.07117921076
A145: 1992-03-11 | B145: 71 | C145: 6.101339452 | D145: -0.1651468614 | F145: -0.06432892676
A146: 1992-03-12 | B146: 72 | C146: 6.118548399 | D146: -0.1606349335 | F146: -0.05746567603
A147: 1992-03-13 | B147: 73 | C147: 6.135757345 | D147: -0.1560468223 | F147: -0.05059128931
A148: 1992-03-14 | B148: 74 | C148: 6.152966292 | D148: -0.1513882512 | F148: -0.04370758906
A149: 1992-03-15 | B149: 75 | C149: 6.170175238 | D149: -0.1466649472 | F149: -0.03681638967
A150: 1992-03-16 | B150: 76 | C150: 6.187384185 | D150: -0.1418826366 | F150: -0.02991949754
A151: 1992-03-17 | B151: 77 | C151: 6.204593131 | D151: -0.1370470406 | F151: -0.02301871123
A152: 1992-03-18 | B152: 78 | C152: 6.221802077 | D152: -0.1321638724 | F152: -0.01611582162
A153: 1992-03-19 | B153: 79 | C153: 6.239011024 | D153: -0.1272388327 | F153: -0.009212612093
A154: 1992-03-20 | B154: 80 | C154: 6.25621997 | D154: -0.1222776067 | F154: -0.002310858676
A155: 1992-03-21 | B155: 81 | C155: 6.273428917 | D155: -0.1172858607 | F155: 0.004587669769
A156: =A155+1 -> 1992-03-22 | B156: 82 | C156: 6.290637863 | D156: -0.1122692389 | F156: 0.01148121136
A157: 1992-03-23 | B157: 83 | C157: 6.30784681 | D157: -0.1072333605 | F157: 0.01836801103
A158: 1992-03-24 | B158: 84 | C158: 6.325055756 | D158: -0.1021838163 | F158: 0.02524632031
A159: 1992-03-25 | B159: 85 | C159: 6.342264702 | D159: -0.09712616631 | F159: 0.03211439718
A160: 1992-03-26 | B160: 86 | C160: 6.359473649 | D160: -0.0920659369 | F160: 0.03897050584
A161: 1992-03-27 | B161: 87 | C161: 6.376682595 | D161: -0.08700861783 | F161: 0.04581291656
A162: 1992-03-28 | B162: 88 | C162: 6.393891542 | D162: -0.08195965976 | F162: 0.05263990547
A163: 1992-03-29 | B163: 89 | C163: 6.411100488 | D163: -0.07692447156 | F163: 0.05944975442
A164: 1992-03-30 | B164: 90 | C164: 6.428309434 | D164: -0.07190841768 | F164: 0.06624075074
A165: 1992-03-31 | B165: 91 | C165: 6.445518381 | D165: -0.06691681548 | F165: 0.07301118715
A166: 1992-04-01 | B166: 92 | C166: 6.462727327 | D166: -0.06195493261 | F166: 0.07975936152
A167: 1992-04-02 | B167: 93 | C167: 6.479936274 | D167: -0.05702798433 | F167: 0.08648357677
A168: 1992-04-03 | B168: 94 | C168: 6.49714522 | D168: -0.05214113074 | F168: 0.09318214073
A169: 1992-04-04 | B169: 95 | C169: 6.514354167 | D169: -0.04729947407 | F169: 0.09985336595
A170: 1992-04-05 | B170: 96 | C170: 6.531563113 | D170: -0.04250805575 | F170: 0.1064955696
A171: 1992-04-06 | B171: 97 | C171: 6.548772059 | D171: -0.03777185358 | F171: 0.1131070735
A172: 1992-04-07 | B172: 98 | C172: 6.565981006 | D172: -0.03309577861 | F172: 0.1196862036
A173: 1992-04-08 | B173: 99 | C173: 6.583189952 | D173: -0.02848467213 | F173: 0.1262312905
A174: 1992-04-09 | B174: 100 | C174: 6.600398899 | D174: -0.02394330237 | F174: 0.132740669
A175: 1992-04-10 | B175: 101 | C175: 6.617607845 | D175: -0.01947636125 | F175: 0.1392126779
A176: =A175+1 -> 1992-04-11 | B176: 102 | C176: 6.634816792 | D176: -0.01508846086 | F176: 0.1456456604
A177: 1992-04-12 | B177: 103 | C177: 6.652025738 | D177: -0.01078412994 | F177: 0.1520379638
A178: 1992-04-13 | B178: 104 | C178: 6.669234684 | D178: -0.006567810194 | F178: 0.1583879396
A179: 1992-04-14 | B179: 105 | C179: 6.686443631 | D179: -0.002443852442 | F179: 0.1646939434
A180: 1992-04-15 | B180: 106 | C180: 6.703652577 | D180: 0.001583487298 | F180: 0.1709543351
A181: 1992-04-16 | B181: 107 | C181: 6.720861524 | D181: 0.005510051886 | F181: 0.1771674789
A182: 1992-04-17 | B182: 108 | C182: 6.73807047 | D182: 0.009331787254 | F182: 0.1833317433
A183: 1992-04-18 | B183: 109 | C183: 6.755279417 | D183: 0.01304474671 | F183: 0.1894455014
A184: 1992-04-19 | B184: 110 | C184: 6.772488363 | D184: 0.01664509535 | F184: 0.195507131
A185: 1992-04-20 | B185: 111 | C185: 6.789697309 | D185: 0.02012911462 | F185: 0.2015150144
A186: 1992-04-21 | B186: 112 | C186: 6.806906256 | D186: 0.02349320692 | F186: 0.2074675392
A187: 1992-04-22 | B187: 113 | C187: 6.824115202 | D187: 0.02673390031 | F187: 0.213363098
A188: 1992-04-23 | B188: 114 | C188: 6.841324149 | D188: 0.02984785334 | F188: 0.219200089
A189: 1992-04-24 | B189: 115 | C189: 6.858533095 | D189: 0.03283185989 | F189: 0.224976916
A190: 1992-04-25 | B190: 116 | C190: 6.875742042 | D190: 0.03568285411 | F190: 0.2306919888
A191: 1992-04-26 | B191: 117 | C191: 6.892950988 | D191: 0.03839791534 | F191: 0.2363437235
A192: 1992-04-27 | B192: 118 | C192: 6.910159934 | D192: 0.04097427314 | F192: 0.2419305432
A193: 1992-04-28 | B193: 119 | C193: 6.927368881 | D193: 0.04340931225 | F193: 0.2474508778
A194: 1992-04-29 | B194: 120 | C194: 6.944577827 | D194: 0.04570057758 | F194: 0.2529031647
A195: 1992-04-30 | B195: 121 | C195: 6.961786774 | D195: 0.04784577917 | F195: 0.2582858494
A196: =A195+1 -> 1992-05-01 | B196: 122 | C196: 6.97899572 | D196: 0.04984279709 | F196: 0.2635973858
A197: 1992-05-02 | B197: 123 | C197: 6.996204666 | D197: 0.05168968631 | F197: 0.2688362369
A198: 1992-05-03 | B198: 124 | C198: 7.013413613 | D198: 0.05338468141 | F198: 0.2740008749
A199: 1992-05-04 | B199: 125 | C199: 7.030622559 | D199: 0.05492620129 | F199: 0.2790897825
A200: 1992-05-05 | B200: 126 | C200: 7.047831506 | D200: 0.05631285367 | F200: 0.2841014527
A201: 1992-05-06 | B201: 127 | C201: 7.065040452 | D201: 0.05754343945 | F201: 0.2890343901
A202: 1992-05-07 | B202: 128 | C202: 7.082249399 | D202: 0.05861695697 | F202: 0.2938871112
A203: 1992-05-08 | B203: 129 | C203: =(279.575+0.986*B203)*PI()/180 -> 7.099458345 | D203: =(-104.7*SIN(C203)+596.2*SIN(2*C203)+4.3*SIN(3*C203)-12.7*SIN(4*C203)-429.3*COS(C203)-2*COS(2*C203)+19.3*COS(3*C203))/3600 -> 0.05953260597 | E203: =12-D203-$F$73 ->  | F203: =ASIN(0.39785*SIN(4.869+0.0172*B203+0.03345*SIN(6.224+0.0172*B203))) -> 0.2986581454 | G203: =ACOS((-0.1-SIN($F$72)*SIN(F203))/(COS($F$72)*COS(F203))) ->  | H203: =G203*24/(2*PI()) ->  | J203: =-(E203-12) ->  | L203: =K203*24/(2*PI()) ->  | O203: =117.5*(K203*SIN($F$72)*SIN(F203)+COS($F$72)*COS(F203)*SIN(K203))/PI() -> 
A204: 1992-05-09 | B204: 130 | C204: 7.116667291 | D204: 0.06028979143 | F204: 0.3033460353 | I204: =E204-H204 ->  | K204: =ACOS((-SIN($F$72)*SIN(F204))/(COS($F$72)*COS(F204))) ->  | M204: =E204-L204 ->  | N204: =M204+2*L204 -> 
A205: 1992-05-10 | B205: 131 | C205: 7.133876238 | D205: 0.06088812715 | F205: 0.307949338
A206: 1992-05-11 | B206: 132 | C206: 7.151085184 | D206: 0.06132743904 | F206: 0.3124666254
A207: 1992-05-12 | B207: 133 | C207: 7.168294131 | D207: 0.06160776819 | F207: 0.3168964853
A208: 1992-05-13 | B208: 134 | C208: 7.185503077 | D208: 0.06172937358 | F208: 0.3212375222
A209: 1992-05-14 | B209: 135 | C209: 7.202712024 | D209: 0.06169273456 | F209: 0.3254883581
A210: 1992-05-15 | B210: 136 | C210: 7.21992097 | D210: 0.06149855292 | F210: 0.3296476337
A211: 1992-05-16 | B211: 137 | C211: 7.237129916 | D211: 0.06114775463 | F211: 0.3337140087
A212: 1992-05-17 | B212: 138 | C212: 7.254338863 | D212: 0.06064149123 | F212: 0.3376861633
A213: 1992-05-18 | B213: 139 | C213: 7.271547809 | D213: 0.05998114083 | F213: 0.3415627991
A214: 1992-05-19 | B214: 140 | C214: 7.288756756 | D214: 0.05916830869 | F214: 0.3453426397
A215: 1992-05-20 | B215: 141 | C215: 7.305965702 | D215: 0.05820482739 | F215: 0.3490244321
A216: =A215+1 -> 1992-05-21 | B216: 142 | C216: 7.323174649 | D216: 0.05709275659 | F216: 0.3526069477
A217: 1992-05-22 | B217: 143 | C217: 7.340383595 | D217: 0.05583438234 | F217: 0.3560889828
A218: 1992-05-23 | B218: 144 | C218: 7.357592541 | D218: 0.05443221597 | F218: 0.3594693604
A219: 1992-05-24 | B219: 145 | C219: 7.374801488 | D219: 0.05288899243 | F219: 0.3627469306
A220: 1992-05-25 | B220: 146 | C220: 7.392010434 | D220: 0.0512076683 | F220: 0.365920572
A221: 1992-05-26 | B221: 147 | C221: 7.409219381 | D221: 0.04939141925 | F221: 0.3689891925
A222: 1992-05-27 | B222: 148 | C222: 7.426428327 | D222: 0.04744363702 | F222: 0.3719517306
A223: 1992-05-28 | B223: 149 | C223: 7.443637274 | D223: 0.04536792594 | F223: 0.3748071562
A224: 1992-05-29 | B224: 150 | C224: 7.46084622 | D224: 0.04316809904 | F224: 0.3775544717
A225: 1992-05-30 | B225: 151 | C225: 7.478055166 | D225: 0.04084817355 | F225: 0.3801927133
A226: 1992-05-31 | B226: 152 | C226: 7.495264113 | D226: 0.03841236607 | F226: 0.3827209513
... 214 more rows
